Workbook

Sheet SolicitudRetribucion
J2: Su Referencia
A8: IMPRESO DE RETRIBUCIONES COMPLEMENTARIAS PERSONAL DE LA UGR
A9: Petición de retención de crédito y pago de retribución (mod. 2023)
A11: DATOS DEL SOLICITANTE
A12: Responsable del Centro de Gasto:
A13: Código de Centro de Gasto:
A14: Nombre del Centro de Gasto:
A16: DATOS PERSONALES DEL PERCEPTOR (1):
A17: Nombre y Apellidos:
A18: NIF, NIE o Pasaporte: | I18: Teléf. contacto:
A19: Departamento/Centro/Servicio:
G23: Comp.Destino | H23: 2060.61 | I23: C.Especf.
K24: % C. Patronal
A25: Categoria: | D25: 22.65 | K25: 0 | L25: =Categorias!F4 -> 4495.5
A27: Tipo de Actividad (Marque lo que proceda): | L27: 0
L28: =IF(L25-L27<0,0,(L25-L27)) -> 4495.5
I29: Indicar nº horas de la actividad, en su caso:
H32: Especificar: | N32: Ceuta
A33: MOTIVO DEL PAGO (Especificar título de la actividad, fechas, horario, etc.) | N33: Granada
N34: Melilla
A38: CONCEPTO DEL PAGO (realizar retención de crédito por retribución + cuota Seguridad Social, en su caso)
A39: Cantidad a abonar: | G39: ¿Cantidad Incluye la Cuota Patronal de SS?:
A40: Orgánica | D40: Funcional | G40: Económica | H40: Retribución | J40: Importe Cuota Patronal S.S.
H41: =(D39*100)/(100+K25) -> 0 | J41: =H41*(K25/100) -> 0
D42: Imp. total de la RETENCION (Retribución + Cuota Patronal SS): | J42: =H41+J41 -> 0
C44: En | D44: Granada | F44: a | G44: 2023-03-20
A47: RESPONSABLE DE CENTRO DE GASTO, | I47: AUTORIZACIÓN GERENCIA,
I48: (en caso de PAS)
A52: ="Fdo.: " & E12 -> Fdo.: | I52: Fdo:
A53: NOTAS:
A54: (1) Los pagos a personal de la UGR se realizarán a través de nómina. El IRPF aplicable será el que fije la normativa aplicable según los casos.
A55: (2) Para pagos de conferencias el importe a retribuir no podrá exceder del que se encuentre estipulado en la Universidad, según los casos.
A56: (3) Los pagos por docencia no podrán exceder del importe por hora establecido tanto para el personal de la UGR como para el personal externo.
A57: PROCEDIMIENTO: Las 2 copias del impreso firmado serán remitidas a la Sección de Presupuestos que, una vez realizada la retención de crédito, remitirá el expediente de retribución al Servicio de Habilitación y Seguridad Social si el importe es <1.000,00 € o, en los demás casos, a la Oficina de Control Interno para su fiscalización y posterior envío al citado Servicio.
A60: Todos los datos facilitados a través del formulario serán tratados de acuerdo a Ley Orgánica 15/1999, de 13 de diciembre de Protección de Datos
A62: RETENCION REALIZADA | H62: FISCALIZADO Y CONFORME
A66: Núm Expediente, Fecha y Sello del Servicio de Contab. y Presup. | H66: Fecha, Firma y Sello
A68: A LA ATENCIÓN DEL SERVICIO DE CONTABILIDAD PRESUPUESTOS DE LA UNIVERSIDAD DE GRANADA
A71: Documentación a aportar:
A73: A.- Conferencias, cursos y similares:
A74: Personal UGR: se tramitará mediante retribución extraordinaria acompañado de la siguiente documentación:
A75: a) Copia de la publicación de la actividad.
A76: b) En el caso de Personal de Administración y Servicios (PAS), el pago debe estar autorizado previamente por la Gerencia.
A78: B.- Pagos con cargo a Proyectos de investigación:
A79: Personal UGR: se tramitará mediante retribución extraordinaria acompañado de la siguiente documentación:
A80: a) Documentación en la que se indique que la persona a la que se pretende retribuir es miembro del Proyecto/Contrato y existencia de partida económica adecuada y suficiente para soportar el gasto.
A82: b) En el caso de Personal de Administración y Servicios (PAS), el pago debe estar autorizado previamente por la Gerencia.
A84: C.- Premios:
A85: Personal UGR: se tramitará mediante retribución extraordinaria acompañado de la siguiente documentación:
A86: a) Convocatoria y fallo de la comisión o jurado normbrado a tal efecto para la selección de los candidatos.
A89: INSTRUCCIONES PARA CUMPLIMENTAR EL IMPRESO
A90: SU REFERENCIA | E90: Introduzca aquí el código o información que vd. use para identificar este pago
A91: CODIGO DE CENTRO DE GASTO | E91: Introduzca aquí los 10 caracteres del codigo del centro de gasto donde se realizará la retención para hacer frente a este pago o, en su caso, modificación presupuestaria.
A92: NOMBRE DEL CENTRO DE GASTO | E92: Introduzca el nombre del Centro de Gasto tal como aparece en la aplicación informática Universitas XXI
A93: DATOS PERSONALES DEL PERCEPTOR | E93: Cumplimentar obligatoriamente el nombre del perceptor, el NIF, NIE o Pasaporte y el Departamento, Centro o Servicio de destino del mismo.
A94: SELECCIÓN DE CATEGORÍA | E94: Debe ir selecionando una de las opciones disponibles en cada grupo de opciones y al final deberá elegir la categoría en el cuadro combinado 'Categoría'. Esto determinará el porcentaje a aplicar para el cálculo de la Cuota Patronal.
A95: COMPLEMENTO DESTINO | E95: Solo aplicable en el caso de PAS Funcionario
A96: NUMERO DE HORAS DE LA ACTIVIDAD | E96: Es obligatorio en el caso de 'Conferencias, cursos y similares' y en el de 'actividades extraordinarias'
A97: TIPO DE ACTIVIDAD A RETRIBUIR | E97: Se deberá marcar la actividad correspondiente por la que se propone la retribución.
A98: ESPECIFICAR | E98: En caso de seleccionar "Activiades extraordinarias" deberá especificarse aquí la actividad de que se trate.
A99: MOTIVO DEL PAGO | E99: Se deberá reflejar el título de la actividad por la que se propone la retribución, fechas de desarrollo, horarios, etc., y cualquier otra anotación por la que quede justificada la participación en la misma del perceptor
A100: CALCULO DE PAGOS | E100: * La Cuota Patronal de SS (CPSS) es aplicable a todos los pagos menos los realizados a PDI que haya adquirido la condición de Funcionario de Carrera antes de 01-01-2011 que cotizan exclusivamente a MUFACE * La CPSS se calculará aplicando el % correspondiente a su categoría al resultado de la operación: Base de Cotización Máxima - Base de Cotización mínima de su categoría. * Si NO está seleccionada la opción '¿Cantidad Incluye la Cuota Patronal de SS?', el 'Importe Total de Retención' a cargar en el centro de gasto será el resultado de sumar la cantidad a abonar y la correspondiente a la CPSS
A101: APLICACIÓN PRESUPUESTARIA | E101: *Si la financiación para el pago de la retribución proviene de créditos para operaciones corrientes, en el campo “Orgánica” se indicará: - Formación y Perfeccionamiento dirigido al PAS: con cargo a la aplicación presupuestaria 3020480000-422D-162.01" - Formación y Perfeccionamiento dirigido al PDI: se sustituirá la RC por una propuesta de modificación presupuestaria (Ver I. Octava de la Instrucción de la Grencia que regula la materia). En ese caso Organica será: 3040000000. - Para la participación ocasional del PDI y PAS en actividades distintas de las anteriores, se realizará retención con cargo a la orgánica y funcional del centro de gasto que lo financie (puesta por Vd), y económica 226.06 * En caso de que la financiación para el pago de la retribución provenga de créditos para operaciones de capital el campo "Orgánica" deberá coincidir con el código del Centro de Gastos reflejado en el cuadro "DATOS DEL SOLICITANTE", indicándose la Funcional y Económica que corresponda
A102: INFORMACIÓN BÁSICA SOBRE PROTECCIÓN DE SUS DATOS PERSONALES APORTADOS
A103: Responsable: | E103: UNIVERSIDAD DE GRANADA
A104: Legitimación | E104: La Universidad de Granada se encuentra legitimada para el tratamiento de los datos personales aportados por ser necesario el cumplimiento de una obligación legal aplicable al responsable del tratamiento: Art. 6.1.c) RGPD.
A105: Finalidad: | E105: Recogida de datos para pago de retribuciones complementarias personal de la UGR.
A106: Destinatarios: | E106: Entidad bancaria, Agencia Tributaria.
A107: Derechos: | E107: Tiene derecho a solicitar el acceso, oposición, rectificación, supresión o limitación del tratamiento de sus datos, tal y como se explica en la información adicional.
A108: Información adicicional: | E108: Puede consultar la información adicional y detallada sobre protección de datos en el siguiente enlace: sl.ugr.es/0dbr

Sheet CP1 (hidden)
A1: COD_PERSONAL | B1: DESC_PERSONAL | C1: COD_NATURALEZA | D1: DESC_NATURALEZA | E1: COD_CATEGORIA | F1: DESC_CATEGORIA | G1: TipoPer | H1: % CUOTA PATRONAL | I1: BaseCotizacionMínima | J1: 2023
B2: DOCENTE | C2: 1 | D2: FUNCIONARIO DE CARRERA | E2: A0500 | F2: CATEDRÁTICO DE UNIVERSIDAD | G2: 1 | H2: 0 | I2: 5148.958333 | J2: 3 quin + 2 Sex + 5 trienios
B3: DOCENTE | C3: 1 | D3: FUNCIONARIO DE CARRERA | E3: A0504 | F3: PROFESOR TITULAR DE UNIVERSIDAD | G3: 1 | H3: 0 | I3: 3943.311667 | J3: 2 quin + 2 sex + 4 trienios
A4: 1 | B4: DOCENTE | C4: 1 | D4: FUNCIONARIO DE CARRERA | E4: A0505 | F4: CATEDRÁTICO DE ESCUELA UNIVERSITARIA | G4: 1 | H4: 0 | I4: 3943.311667 | J4: 2 quin + 2 sex + 4 trienios
A5: 1 | B5: DOCENTE | C5: 1 | D5: FUNCIONARIO DE CARRERA | E5: A0506 | F5: PROFESOR TITULAR DE ESCUELA UNIVERSITARIA | G5: 1 | H5: 0 | I5: 3436.988333 | J5: 3 quin + 0 Sex + 5 trienios
B6: DOCENTE | C6: 1 | D6: FUNCIONARIO DE CARRERA | E6: A48EC | F6: PROFESOR AGREGADO DE BACHILLERATO | G6: 1 | H6: 0 | J6: no hay nadie ya
B7: DOCENTE | C7: 1 | D7: FUNCIONARIO DE CARRERA | E7: A24EC | F7: AYUDANTE TÉCNICO DE ESCUELA ARTES APLIC. Y OFICIOS ARTÍSTICOS | G7: 1 | H7: 0 | K7: No hay datos en la base. Se ha calculado el 2,25% sobre la cantidad del año anterior.
B8: DOCENTE | C8: 1 | D8: FUNCIONARIO DE CARRERA | E8: A33EC | F8: PROFESOR DE ESCUELA DE MAESTRÍA INDUSTRIAL | G8: 1 | H8: 0 | J8: no hay nadie ya
B9: DOCENTE | C9: 1 | D9: FUNCIONARIO DE CARRERA | E9: A35EC | F9: PROFESOR TÉCNICO DE F.P. | G9: 1 | H9: 0 | J9: no hay nadie ya | K9: No hay datos en la base. Se ha calculado el 2,25% sobre la cantidad del año anterior.
A10: 1 | B10: DOCENTE | C10: 0 | D10: SIN RELACIÓN JURÍDICA CON LA UNIV | E10: CEUG | F10: COLABORADOR EXTRAORDINARIO | H10: 0
A11: 1 | B11: DOCENTE | C11: 0 | D11: SIN RELACIÓN JURÍDICA CON LA UNIV | E11: PEUGR | F11: PROFESOR EMÉRITO | H11: 0
A12: 1 | B12: DOCENTE | C12: 0 | D12: SIN RELACIÓN JURÍDICA CON LA UNIV | E12: UGVLC | F12: PROFESOR VISITANTE LABORAL | H12: 0
D44: Granada | G44: 2020-02-25

Sheet CP2 (hidden)
A1: COD_PERSONAL | B1: DESC_PERSONAL | C1: COD_NATURALEZA | D1: DESC_NATURALEZA | E1: COD_CATEGORIA | F1: DESC_CATEGORIA | G1: TipoPer | H1: % CUOTA PATRONAL | I1: BaseCotizacionMínima | J1: 2022
B2: DOCENTE | C2: 1 | D2: FUNCIONARIO DE CARRERA | E2: A0500 | F2: CATEDRÁTICO DE UNIVERSIDAD INTERINO | G2: 1 | H2: 31.9 | I2: ='CP1'!I2 -> 5148.958333 | J2: =I2 -> 5148.958333
B3: DOCENTE | C3: 1 | D3: FUNCIONARIO DE CARRERA | E3: A0504 | F3: PROFESOR TITULAR DE UNIVERSIDAD INTERINO | G3: 1 | H3: 31.9 | I3: ='CP1'!I3 -> 3943.311667 | J3: =I3 -> 3943.311667
A4: 1 | B4: DOCENTE | C4: 1 | D4: FUNCIONARIO DE CARRERA | E4: A0505 | F4: CATEDRÁTICO DE ESCUELA UNIVERSITARIA INTERINO | G4: 1 | H4: 31.9 | I4: ='CP1'!I4 -> 3943.311667 | J4: =I4 -> 3943.311667
A5: 1 | B5: DOCENTE | C5: 1 | D5: FUNCIONARIO DE CARRERA | E5: A0506 | F5: PROFESOR TITULAR DE ESCUELA UNIVERSITARIA INTERINO | G5: 1 | H5: 31.9 | I5: ='CP1'!I5 -> 3436.988333 | J5: =I5 -> 3436.988333
G44: 2017-05-12

Sheet CP3 (hidden)
A1: COD_PERSONAL | B1: DESC_PERSONAL | C1: COD_NATURALEZA | D1: DESC_NATURALEZA | E1: COD_CATEGORIA | F1: DESC_CATEGORIA | G1: TipoPer | H1: % CUOTA PATRONAL | I1: BaseCotizacionMínima | J1: 2022
A2: 1 | B2: DOCENTE | C2: 3 | D2: CONTRATO LABORAL | E2: PEUEC | F2: PROFESOR DE LA E. U. DE ENFERMERÍA DE CEUTA "A EXTINGUIR" | G2: 3 | H2: 31.9 | I2: =J2*1.025 -> 2641.425 | J2: 2577 | K2: Según nómina de este año incluido cargo académico
B3: DOCENTE | C3: 3 | D3: CONTRATO LABORAL | E3: PEUEC | F3: PROFESOR DE LA E. U. DE ENFERMERÍA DE CEUTA "A EXTINGUIR" TIEMPO PARCIAL | G3: 3 | H3: 31.9 | I3: =J3*1.025 -> 458.90275 | J3: 447.71 | K3: Según nómina de este año
A4: 1 | B4: DOCENTE | C4: 3 | D4: CONTRATO LABORAL | E4: T43L | F4: PROFESOR LABORAL PERMANENTE | G4: 3 | H4: 31.9 | I4: =J4*1.025 -> 3294.297315 | J4: 3213.9486 | K4: 2700.77
A5: 1 | B5: DOCENTE | C5: 3 | D5: CONTRATO LABORAL | E5: T74C | F5: PROFESOR ASOCIADO EXTRANJERO | G5: 3 | H5: 31.7 | I5: =J5*1.025 -> 2484.86076 | J5: 2424.2544 | K5: Con trienios
A6: 1 | B6: DOCENTE | C6: 3 | D6: CONTRATO LABORAL | E6: T80C | F6: PROFESOR DE EDUCACION FÍSICA * A EXTINGUIR | G6: 3 | H6: 31.9 | I6: =J6*1.025 -> 2932.443 | J6: 2860.92
A7: 2 | B7: DOCENTE | C7: 4 | D7: CONTRATO LABORAL | F7: PROFESOR AYUDANTE | G7: 3 | H7: 33.1 | I7: 2057.43 | J7: 1949.11
A8: 1 | B8: DOCENTE | C8: 3 | D8: CONTRATO LABORAL | E8: UGADR | F8: PROFESOR AYUDANTE DOCTOR | G8: 3 | H8: 33.1 | I8: 2804 | J8: 2102.99
A9: 2 | B9: DOCENTE | C9: 4 | D9: CONTRATO LABORAL | E9: UGA1L | F9: PROFESOR ASOCIADO LABORAL (6H) | G9: 3 | H9: 33.1 | I9: 934.66 | J9: 899.59
A10: 3 | B10: DOCENTE | C10: 5 | D10: CONTRATO LABORAL | E10: UGA1L | F10: PROFESOR ASOCIADO LABORAL (5H) | G10: 3 | H10: 33.1 | I10: 778.89 | J10: 749.65
A11: 4 | B11: DOCENTE | C11: 6 | D11: CONTRATO LABORAL | E11: UGA1L | F11: PROFESOR ASOCIADO LABORAL (4H) | G11: 3 | H11: 33.1 | I11: 597.25 | J11: 599.73
A12: 5 | B12: DOCENTE | C12: 7 | D12: CONTRATO LABORAL | E12: UGA1L | F12: PROFESOR ASOCIADO LABORAL (3H) | G12: 3 | H12: 33.1 | I12: 467.34 | J12: 449.79
A13: 6 | B13: DOCENTE | C13: 8 | D13: CONTRATO LABORAL | E13: UGA1L | F13: PROFESOR ASOCIADO LABORAL (2H) | G13: 3 | H13: 33.1 | I13: 311.55 | J13: 299.86
A14: 1 | B14: DOCENTE | C14: 3 | D14: CONTRATO LABORAL | E14: UGCDI | F14: PROFESOR CONTRATADO DOCTOR INTERINO | G14: 3 | H14: 31.9 | I14: 3115.556667 | J14: 2998.63
A15: 1 | B15: DOCENTE | C15: 3 | D15: CONTRATO LABORAL | E15: UGCDR | F15: PROFESOR CONTRATADO DOCTOR | G15: 3 | H15: 31.9 | I15: 3527.82 | J15: 3362.79 | K15: 2trienios + 2 tramos
C16: 2 | D16: CONTRATO LABORAL | E16: UGCLB | F16: PROFESOR COLABORADOR (NO Doctor) | H16: 31.9 | I16: 2613.01 | J16: 2548.83
A17: 1 | B17: DOCENTE | C17: 3 | D17: CONTRATO LABORAL | E17: UGCLB | F17: PROFESOR COLABORADOR (DOCTOR) | G17: 3 | H17: 31.9 | I17: 3220.54 | J17: 3066.88 | K17: 2trienios + 2 tramos
A18: 1 | B18: DOCENTE | C18: 3 | D18: CONTRATO LABORAL | E18: UGCSL | F18: PROFESOR ASOCIADO CIENCIAS SALUD | G18: 3 | H18: 33.1 | I18: 309.8 | J18: 297.86
A19: 1 | B19: DOCENTE | C19: 3 | D19: CONTRATO LABORAL | E19: UGISD | F19: PROFESOR SUSTITUTO INTERINO | G19: 3 | H19: 31.9 | I19: 1869.34 | J19: 1719.18
A20: 2 | B20: DOCENTE | C20: 4 | D20: CONTRATO LABORAL | E20: UGISP | F20: PROFESOR SUSTITUTO INTERINO TIEMPO PARCIAL (6H) | G20: 3 | H20: 31.9 | I20: 934.66 | J20: 899.59
A21: 3 | B21: DOCENTE | C21: 5 | D21: CONTRATO LABORAL | E21: UGISP | F21: PROFESOR SUSTITUTO INTERINO TIEMPO PARCIAL (5H) | G21: 3 | H21: 31.9 | I21: 778.89 | J21: 749.65
A22: 4 | B22: DOCENTE | C22: 6 | D22: CONTRATO LABORAL | E22: UGISP | F22: PROFESOR SUSTITUTO INTERINO TIEMPO PARCIAL (4H) | G22: 3 | H22: 31.9 | I22: 597.25 | J22: 599.73
A23: 5 | B23: DOCENTE | C23: 7 | D23: CONTRATO LABORAL | E23: UGISP | F23: PROFESOR SUSTITUTO INTERINO TIEMPO PARCIAL (3H) | G23: 3 | H23: 31.9 | I23: 467.34 | J23: 449.79
A24: 6 | B24: DOCENTE | C24: 8 | D24: CONTRATO LABORAL | E24: UGISP | F24: PROFESOR SUSTITUTO INTERINO TIEMPO PARCIAL (2H) | G24: 3 | H24: 31.9 | I24: 311.55 | J24: 299.86
A25: 1 | B25: DOCENTE | C25: 3 | D25: CONTRATO LABORAL | E25: UGVLC | F25: PROFESOR VISITANTE LABORAL | G25: 3 | H25: 33.1 | I25: 2010.07 | J25: 1932.35 | K25: Sin trienios
B26: DOCENTE | C26: 3 | D26: CONTRATO LABORAL | F26: PROFESOR VISITANTE LABORAL- DOCTOR | G26: 3 | H26: 33.1 | I26: 2447.61 | J26: 2353.31 | K26: Sin trienios
D45: Granada | G45: 2019-01-25

Sheet CP4 (hidden)
A1: COD_PERSONAL | B1: DESC_PERSONAL | C1: COD_NATURALEZA | D1: DESC_NATURALEZA | E1: COD_CATEGORIA | F1: DESC_CATEGORIA | G1: TipoPer | H1: % CUOTA PATRONAL | I1: BaseCotizacionMínima | J1: 2022 | K1: Facilitado por Miguel Angel Guardia
A2: 6 | B2: INVESTIGADOR CONTRATADO | C2: 3 | D2: CONTRATO LABORAL | E2: APPP | F2: AYUDA PUENTE DOCTORES PLAN PROPIO | G2: 4 | H2: 33.1 | I2: =J2*1.025 -> 1611.6075 | J2: 1572.3
A3: 6 | B3: INVESTIGADOR CONTRATADO | C3: 6 | D3: PERSONAL DEL CONSEJO SOCIAL | E3: APPP | F3: AYUDA PUENTE DOCTORES PLAN PROPIO | G3: 4 | H3: 33.1 | I3: =J3*1.025 -> 1611.6075 | J3: 1572.3
A4: 6 | B4: INVESTIGADOR CONTRATADO | C4: 3 | D4: CONTRATO LABORAL | E4: IPPP | F4: AYUDAS A LA INVESTIGACION POSDOCTORAL PLAN PROPIO | G4: 4 | H4: 33.1 | I4: 1611.6075 | J4: 1572.3
A5: 6 | B5: INVESTIGADOR CONTRATADO | C5: 3 | D5: CONTRATO LABORAL | E5: CIPR | F5: CONTRATO INVESTIGADOR CON CARGO A PROYECTO | G5: 4 | H5: 33.1 | I5: 1611.6075 | J5: 1572.3
A6: 6 | B6: INVESTIGADOR CONTRATADO | C6: 3 | D6: CONTRATO LABORAL | E6: FPU11 | F6: CONTRATOS PREDOCTORALES LEY 14/2011 FPU | G6: 4 | H6: 26.02 | I6: 1611.6075 | J6: 1572.3
A7: 7 | B7: INVESTIGADOR EN FORMACIÓN | C7: 3 | D7: CONTRATO LABORAL | E7: FPU11 | F7: CONTRATOS PREDOCTORALES LEY 14/2011 FPU | G7: 4 | H7: 26.02 | I7: 1611.6075 | J7: 1572.3
A8: 6 | B8: INVESTIGADOR CONTRATADO | C8: 3 | D8: CONTRATO LABORAL | E8: CDPE | F8: CONTRATOS DOCTORES PROYECTOS DE EXCELENCIA | G8: 4 | H8: 33.1 | I8: 1611.6075 | J8: 1572.3
A9: 6 | B9: INVESTIGADOR CONTRATADO | C9: 9 | D9: CONTRATADOS INVESTIGACION | E9: CDPE | F9: CONTRATOS DOCTORES PROYECTOS DE EXCELENCIA | G9: 4 | H9: 33.1 | I9: 1611.6075 | J9: 1572.3
A10: 7 | B10: INVESTIGADOR EN FORMACIÓN | C10: 3 | D10: CONTRATO LABORAL | E10: CBE11 | F10: CONTRATOS PREDOCTORALES BECARIOS PROY. EXCELENCIA L.14/2011 | G10: 4 | H10: 26.02 | I10: 1611.6075 | J10: 1572.3
A11: 7 | B11: INVESTIGADOR EN FORMACIÓN | C11: 3 | D11: CONTRATO LABORAL | E11: PROI | F11: CONTRATOS PREDOCTORALES DE OTRAS INSTITUCIONES | G11: 4 | H11: 26.02 | I11: 1611.6075 | J11: 1572.3
A12: 7 | B12: INVESTIGADOR EN FORMACIÓN | C12: 3 | D12: CONTRATO LABORAL | E12: 11FPI | F12: CONTRATOS PREDOCTORALES FORMACION DOCTORES LEY 14/2011 | G12: 4 | H12: 26.02 | I12: 1611.6075 | J12: 1572.3
A13: 7 | B13: INVESTIGADOR EN FORMACIÓN | C13: 3 | D13: CONTRATO LABORAL | E13: FPP11 | F13: CONTRATOS PREDOCTORALES PLAN PROPIO LEY 14/2011 | G13: 4 | H13: 26.02 | I13: 1611.6075 | J13: 1572.3
A14: 7 | B14: INVESTIGADOR EN FORMACIÓN | C14: 3 | D14: CONTRATO LABORAL | E14: FPPP | F14: FORMACION DE INVESTIGADORES. PLAN PROPIO | G14: 4 | H14: 33.1 | I14: 1611.6075 | J14: 1572.3
A15: 6 | B15: INVESTIGADOR CONTRATADO | C15: 3 | D15: CONTRATO LABORAL | E15: POOI | F15: INVESTIGADOR DOCTOR DE OTRAS INSTITUCIONES | G15: 4 | H15: 33.1 | I15: 1611.6075 | J15: 1572.3
A16: 6 | B16: INVESTIGADOR CONTRATADO | C16: 3 | D16: CONTRATO LABORAL | E16: FPDID | F16: INVESTIGADOR DOCTOR JUNTA ANDALUCIA AREAS DEFICITARIAS | G16: 4 | H16: 33.1 | I16: 1611.6075 | J16: 1572.3
A17: 6 | B17: INVESTIGADOR CONTRATADO | C17: 3 | D17: CONTRATO LABORAL | E17: PIPRI | F17: PERSONAL INVESTIGADOR DE PROYECTOS INTERNACIONALES | G17: 4 | H17: 33.1 | I17: 1611.6075 | J17: 1572.3
A18: 6 | B18: INVESTIGADOR CONTRATADO | C18: 3 | D18: CONTRATO LABORAL | E18: TALEN | F18: POSDOCTORAL TALENTIA JUNTA ANDALUCIA | G18: 4 | H18: 33.1 | I18: 1611.6075 | J18: 1572.3
A19: 6 | B19: INVESTIGADOR CONTRATADO | C19: 9 | D19: CONTRATADOS INVESTIGACION | E19: TALEN | F19: POSDOCTORAL TALENTIA JUNTA ANDALUCIA | G19: 4 | H19: 33.1 | I19: 1611.6075 | J19: 1572.3
A20: 6 | B20: INVESTIGADOR CONTRATADO | C20: 3 | D20: CONTRATO LABORAL | E20: PRPP | F20: PROGRAMA DE REINCORPORACION DEL PLAN PROPIO | G20: 4 | H20: 33.1 | I20: 1611.6075 | J20: 1572.3
A21: 6 | B21: INVESTIGADOR CONTRATADO | C21: 3 | D21: CONTRATO LABORAL | E21: PIJC | F21: PROGRAMA INVESTIGACION JUAN DE LA CIERVA | G21: 4 | H21: 33.1 | I21: 1611.6075 | J21: 1572.3
A22: 6 | B22: INVESTIGADOR CONTRATADO | C22: 3 | D22: CONTRATO LABORAL | E22: PIRC | F22: PROGRAMA INVESTIGACION RAMON Y CAJAL | G22: 4 | H22: 31.9 | I22: 1611.6075 | J22: 1572.3
A23: 6 | B23: INVESTIGADOR CONTRATADO | C23: 3 | D23: CONTRATO LABORAL | E23: PDPP | F23: PROGRAMA PERFECCIONAMIENTO DOCTORES PLAN PROPIO | G23: 4 | H23: 33.1 | I23: 1611.6075 | J23: 1572.3
A24: 6 | B24: INVESTIGADOR CONTRATADO | C24: 3 | D24: CONTRATO LABORAL | E24: PPJID | F24: PROGRAMA PROYECTOS JÓVENES INVESTIGADORES DOCTORES | G24: 4 | H24: 33.1 | I24: 1611.6075 | J24: 1572.3

Sheet CP5 (hidden)
A1: COD_PERSONAL | B1: DESC_PERSONAL | C1: COD_NATURALEZA | D1: DESC_NATURALEZA | E1: COD_CATEGORIA | F1: DESC_CATEGORIA | G1: TipoPer | H1: % CUOTA PATRONAL | I1: BaseCotizacionMínima | J1: 2022 | K1: Faciitado por Miguel Angel Guardia
A2: 7 | B2: INVESTIGADOR EN FORMACIÓN | C2: 11 | D2: CONTRATO EN PRÁCTICAS | E2: 11FPI | F2: CONTRATOS PREDOCTORALES FORMACION DOCTORES LEY 14/2011 | G2: 5 | H2: 26.02 | I2: =J2*1.025 -> 1611.6075 | J2: 1572.3
A3: 7 | B3: INVESTIGADOR EN FORMACIÓN | C3: 11 | D3: CONTRATO EN PRÁCTICAS | E3: FPP11 | F3: CONTRATOS PREDOCTORALES PLAN PROPIO LEY 14/2011 | G3: 5 | H3: 26.02 | I3: =J3*1.025 -> 1611.6075 | J3: 1572.3
A4: 7 | B4: INVESTIGADOR EN FORMACIÓN | C4: 11 | D4: CONTRATO EN PRÁCTICAS | E4: FPDID | F4: INVESTIGADOR DOCTOR JUNTA ANDALUCIA AREAS DEFICITARIAS | G4: 5 | H4: 33.1 | I4: =J4*1.025 -> 2831.610798 | J4: =(2655.29*1.0175)*1.0225 -> 2762.54712

Sheet CP6 (hidden)
A1: COD_PERSONAL | B1: DESC_PERSONAL | C1: COD_NATURALEZA | D1: DESC_NATURALEZA | E1: DESC_CATEGORIA | G1: TipoPer | H1: % CUOTA PATRONAL | I1: BaseCotizacionMínima | J1: 2022 | L1: ESTO MAS LO CORRESPONDIENTE A SU NIVEL DE LA HOJA CDestino
C2: 1 | D2: FUNCIONARIO DE CARRERA | E2: ESCALA AUXILIAR (Grupo C2) | F2: Grupo C2 | G2: 6 | H2: 26.2 | I2: 835.37 | J2: 803.172072 | K2: 1 trienio
A3: 2 | B3: P.A.S. | C3: 1 | D3: FUNCIONARIO DE CARRERA | E3: ESCALA ADMINISTRATIVA (Grupo C1) | F3: Grupo C1 | G3: 6 | H3: 26.2 | I3: 1026.921667 | J3: 987.36 | K3: 2 trienios
E4: Grupo B | F4: Grupo B | G4: 6 | H4: 26.2 | I4: 1195.228333 | J4: 1149.1626 | K4: 2 trienios
A5: 2 | B5: P.A.S. | C5: 1 | D5: FUNCIONARIO DE CARRERA | E5: ESCALA DE GESTION (Grupo A2) | F5: Grupo A2 | G5: 6 | H5: 26.2 | I5: 1340.095 | J5: 1288.464 | K5: 2 trienios
A6: 2 | B6: P.A.S. | C6: 1 | D6: FUNCIONARIO DE CARRERA | E6: ESCALA TECNICA (Grupo A1) | F6: Grupo A1 | G6: 6 | H6: 26.2 | I6: 1530.193333 | J6: 1471.2276 | K6: 2 trienios
A8: 2 | B8: P.A.S. | C8: 1 | D8: FUNCIONARIO DE CARRERA | E8: ESCALA AYUDANTES ARCHIVOS,BIBL.Y M. (Grupo A2) | F8: TS APOYO DOCENCIA DIRECTOR SERVICIO | G8: 6 | H8: 26.2 | I8: =$I$6 -> 1530.193333
A9: 2 | B9: P.A.S. | C9: 1 | D9: FUNCIONARIO DE CARRERA | E9: ESCALA FACULTATIVA ARCHIVOS,BIBLIT.Y M. (Grupo A1) | F9: TS APOYO DOCENCIA SUBDIRECTOR SERVICIO | G9: 6 | H9: 26.2 | I9: =$I$6 -> 1530.193333
F10: TIT. SUPERIOR DE APOYO A LA DOCENCIA E INVESTIGACIÓN | H10: 26.2 | I10: 1530.193333
A11: 2 | B11: P.A.S. | C11: 1 | D11: FUNCIONARIO DE CARRERA | E11: ESCALA ADMINISTRATIVA ESP. INFORMATICA (Grupo C1) | F11: TITULADO SUPERIOR | G11: 6 | H11: 26.2 | I11: 1530.193333
A12: 2 | B12: P.A.S. | C12: 1 | D12: FUNCIONARIO DE CARRERA | E12: ESCALA DE GESTION ESP.INFORMATICA (Grupo A2) | F12: TITULADO SUPERIOR DE PRENSA E INFORMACIÓN | G12: 6 | H12: 26.2 | I12: 1530.193333
A13: 2 | B13: P.A.S. | C13: 1 | D13: FUNCIONARIO DE CARRERA | E13: ESCALA TECNICA GESTION ESP. INFORMATICA (Grupo A1) | F13: TITULADO SUPERIOR DE DEPORTES | G13: 6 | H13: 26.2 | I13: 1530.193333
F14: TITULADO SUPERIOR DE ACTIVIDADES CULTURALES | H14: 26.2 | I14: 1530.193333
A15: 2 | B15: P.A.S. | C15: 1 | D15: FUNCIONARIO DE CARRERA | E15: ESCALA GESTION PROFESIONAL (Grupo A2) | F15: TGM APOYO DOCENCIA DIRECTOR SERVICIO | G15: 6 | H15: 26.2 | I15: =$I$5 -> 1340.095
A16: 2 | B16: P.A.S. | C16: 1 | D16: FUNCIONARIO DE CARRERA | E16: ESCALA TECNICA PROFESIONAL (Grupo A1) | F16: TGM APOYO DOCENCIA SUBDIRECTOR SERVICIO | G16: 6 | H16: 26.2 | I16: =$I$5 -> 1340.095
F17: TITULADO GRADO MEDIO | H17: 26.2 | I17: 1340.095
A18: 2 | B18: P.A.S. | C18: 1 | D18: FUNCIONARIO DE CARRERA | E18: ESCALA DE GESTION ESP. ING. TEC. INDRUSTRIAL (Grupo A2) | F18: TIT. GRADO MEDIO DE APOYO A LA DOCENCIA E INVESTIGACIÓN | G18: 6 | H18: 26.2 | I18: 1340.095
F19: TIT. GRADO MEDIO PREV. DE RIESGOS LABORALES | H19: 26.2 | I19: 1340.095
F20: TITULADO DE GRADO MEDIO DE DEPORTES | H20: 26.2 | I20: 1340.095
F21: TRABAJADOR SOCIAL | H21: 26.2 | I21: 1340.095
F22: TITULADO DE GRADO MEDIO | H22: 26.2 | I22: 1340.095
F23: ENCARGADO DE EQUIPO | H23: 26.2 | I23: =$I$3 -> 1026.921667
F24: ENCARGADO DE EQUIPO DE CONSERJERIA | H24: 26.55 | I24: =$I$3 -> 1026.921667
F25: DELINEANTE | H25: 26.2 | I25: 1026.921667
F26: TÉCNICO ESPECIALISTA | H26: 26.2 | I26: 1026.921667
F27: TEC. ESPEC. BIBLIOTECA, ARCHIVO Y MUSEO | H27: 26.2 | I27: 1026.921667
F28: TEC. ESPECIALISTA DE PRENSA E INFORMACION | H28: 26.2 | I28: 1026.921667
F29: TEC. ESPECIALISTA DE MEDIOS AUDIOVISUALES | H29: 26.2 | I29: 1026.921667
F30: TECNICO ESPECIALISTA DE LABORATORIO | H30: 26.2 | I30: 1026.921667
F31: TECNICO ESPECIALISTA DE TELECOMUNICACIONES | H31: 26.2 | I31: 1026.921667
F32: TECNICO ESPECIALISTA EN HOSTELERIA | H32: 26.2 | I32: 1026.921667
F33: TEC. ESPEC. PREVENCIÓN DE RIESGOS LABORALES | H33: 26.2 | I33: 1026.921667
F34: TEC. ESPEC. SERV. TEC. OBRAS, EQUIP. Y MANTENIMIENTO | H34: 26.55 | I34: 1026.921667
F35: TEC. ESPECIALISTA ACTIVIDADES CULTURALES | H35: 26.2 | I35: 1026.921667
F36: TEC. ESPECIALISTA DE ADMON. ( A EXT.) | H36: 26.2 | I36: 1026.921667
F37: TECNICO ESPECIALISTA DE ALMACEN | H37: 26.55 | I37: 1026.921667
F38: TECNICO ESPECIALISTA | H38: 26.2 | I38: 1026.921667
F39: CONDUCTOR MECANICO | H39: 26.2 | I39: 1026.921667
F40: INTERPRETE/INFORMADOR | H40: 26.2 | I40: 1026.921667
F41: TEC. AUX. DE ADMINISTRACION ( A EXT.) | H41: 26.2 | I41: =$I$2 -> 835.37
F42: TEC. AUX. SERV. TEC. OBRAS Y MANTENIMIENTO | H42: 26.55 | I42: =$I$2 -> 835.37
F43: TECNICO AUXILIAR DE ALMACEN | H43: 26.55 | I43: 835.37
D44: Granada | F44: TECNICO AUXILIAR DE HOSTELERIA | G44: 2021-01-18 | H44: 26.2 | I44: 835.37
F45: TECNICO AUXILIAR DE INSTALAC. DEPORTIVAS | H45: 26.55 | I45: 835.37
F46: TECNICO AUXILIAR DE LABORATORIO | H46: 26.2 | I46: 835.37
F47: TECNICO AUXILIAR DE LIMPIEZA | H47: 28.3 | I47: 835.37
F48: TEC. AUX. DEL SERVICIO DE CONSERJERIA | H48: 26.55 | I48: 835.37

Sheet CP7 (hidden)
A1: COD_PERSONAL | B1: DESC_PERSONAL | C1: COD_NATURALEZA | D1: DESC_NATURALEZA | E1: COD_CATEGORIA | F1: DESC_CATEGORIA | G1: TipoPer | H1: % CUOTA PATRONAL | I1: BaseCotizacionMínima | J1: 2022
A2: 2 | B2: P.A.S. | C2: 2 | D2: FUNCIONARIO DE EMPLEO INTERINO | E2: I7086 | F2: Grupo C2 | G2: 7 | H2: 31.7 | I2: ='CP6'!I2 -> 835.37 | J2: 803.172072
A3: 2 | B3: P.A.S. | C3: 2 | D3: FUNCIONARIO DE EMPLEO INTERINO | E3: I7083 | F3: Grupo C1 | G3: 7 | H3: 31.7 | I3: ='CP6'!I3 -> 1026.921667 | J3: 987.36
A4: 2 | B4: P.A.S. | C4: 2 | D4: FUNCIONARIO DE EMPLEO INTERINO | E4: I7490 | F4: Grupo B | G4: 7 | H4: 31.7 | I4: ='CP6'!I4 -> 1195.228333 | J4: 1149.1626
A5: 2 | B5: P.A.S. | C5: 2 | D5: FUNCIONARIO DE EMPLEO INTERINO | E5: I7749 | F5: Grupo A2 | G5: 7 | H5: 31.7 | I5: ='CP6'!I5 -> 1340.095 | J5: 1288.464
A6: 2 | B6: P.A.S. | C6: 2 | D6: FUNCIONARIO DE EMPLEO INTERINO | E6: I7488 | F6: Grupo A1 | G6: 7 | H6: 31.7 | I6: ='CP6'!I6 -> 1530.193333 | J6: 1471.2276
A7: 2 | B7: P.A.S. | C7: 2 | D7: FUNCIONARIO DE EMPLEO INTERINO | E7: I7746
F8: TS APOYO DOCENCIA DIRECTOR SERVICIO | H8: 31.7
F9: TS APOYO DOCENCIA SUBDIRECTOR SERVICIO | H9: 31.7
F10: TIT. SUPERIOR DE APOYO A LA DOCENCIA E INVESTIGACIÓN | H10: 31.7
F11: TITULADO SUPERIOR | H11: 31.7
F12: TITULADO SUPERIOR DE PRENSA E INFORMACIÓN | H12: 31.7
F13: TITULADO SUPERIOR DE DEPORTES | H13: 31.7
F14: TITULADO SUPERIOR DE ACTIVIDADES CULTURALES | H14: 31.7
F15: TGM APOYO DOCENCIA DIRECTOR SERVICIO | H15: 31.7
F16: TGM APOYO DOCENCIA SUBDIRECTOR SERVICIO | H16: 31.7
F17: TITULADO GRADO MEDIO | H17: 31.7
F18: TIT. GRADO MEDIO DE APOYO A LA DOCENCIA E INVESTIGACIÓN | H18: 31.7
F19: TIT. GRADO MEDIO PREV. DE RIESGOS LABORALES | H19: 31.7
F20: TITULADO DE GRADO MEDIO DE DEPORTES | H20: 31.7
F21: TRABAJADOR SOCIAL | H21: 31.7
F22: TITULADO DE GRADO MEDIO | H22: 31.7
F23: ENCARGADO DE EQUIPO | H23: 31.7
F24: ENCARGADO DE EQUIPO DE CONSERJERIA | H24: 32.05
F25: DELINEANTE | H25: 31.7
F26: TÉCNICO ESPECIALISTA | H26: 31.7
F27: TEC. ESPEC. BIBLIOTECA, ARCHIVO Y MUSEO | H27: 31.7
F28: TEC. ESPECIALISTA DE PRENSA E INFORMACION | H28: 31.7
F29: TEC. ESPECIALISTA DE MEDIOS AUDIOVISUALES | H29: 31.7
F30: TECNICO ESPECIALISTA DE LABORATORIO | H30: 31.7
F31: TECNICO ESPECIALISTA DE TELECOMUNICACIONES | H31: 31.7
F32: TECNICO ESPECIALISTA EN HOSTELERIA | H32: 31.7
F33: TEC. ESPEC. PREVENCIÓN DE RIESGOS LABORALES | H33: 31.7
F34: TEC. ESPEC. SERV. TEC. OBRAS, EQUIP. Y MANTENIMIENTO | H34: 32.05
F35: TEC. ESPECIALISTA ACTIVIDADES CULTURALES | H35: 31.7
F36: TEC. ESPECIALISTA DE ADMON. ( A EXT.) | H36: 31.7
F37: TECNICO ESPECIALISTA DE ALMACEN | H37: 32.05
F38: TECNICO ESPECIALISTA | H38: 31.7
F39: CONDUCTOR MECANICO | H39: 31.7
F40: INTERPRETE/INFORMADOR | H40: 31.7
F41: TEC. AUX. DE ADMINISTRACION ( A EXT.) | H41: 31.7
F42: TEC. AUX. SERV. TEC. OBRAS Y MANTENIMIENTO | H42: 32.05
F43: TECNICO AUXILIAR DE ALMACEN | H43: 32.05
F44: TECNICO AUXILIAR DE HOSTELERIA | H44: 31.7
F45: TECNICO AUXILIAR DE INSTALAC. DEPORTIVAS | H45: 32.05
F46: TECNICO AUXILIAR DE LABORATORIO | H46: 31.7
F47: TECNICO AUXILIAR DE LIMPIEZA | H47: 33.8
F48: TEC. AUX. DEL SERVICIO DE CONSERJERIA | H48: 32.05

Sheet CP8 (hidden)
A1: COD_PERSONAL | B1: DESC_PERSONAL | C1: COD_NATURALEZA | D1: DESC_NATURALEZA | E1: COD_CATEGORIA | F1: DESC_CATEGORIA | G1: TipoPer | H1: % CUOTA PATRONAL | I1: BaseCotizacionMínima | J1: 2022
A2: 2 | B2: P.A.S. | C2: 3 | D2: CONTRATO LABORAL | E2: 10003 | F2: TIT. SUPERIOR DE APOYO A LA DOCENCIA E INVESTIGACIÓN | G2: 8 | H2: 31.9 | I2: 4049.523333 | J2: 3948.365143
A3: 2 | B3: P.A.S. | C3: 3 | D3: CONTRATO LABORAL | E3: 10005 | F3: TITULADO SUPERIOR DE PRENSA E INFORMACIÓN | G3: 8 | H3: 31.9 | I3: 3782.509167 | J3: 3695.468948
A4: 2 | B4: P.A.S. | C4: 3 | D4: CONTRATO LABORAL | E4: 10006 | F4: TITULADO SUPERIOR DE DEPORTES | G4: 8 | H4: 31.9 | I4: 3782.509167 | J4: 3695.468948
A5: 2 | B5: P.A.S. | C5: 3 | D5: CONTRATO LABORAL | E5: 10011 | F5: TITULADO SUPERIOR DE ACTIVIDADES CULTURALES | G5: 8 | H5: 31.9 | I5: 3782.509167 | J5: 3695.468948
A6: 2 | B6: P.A.S. | C6: 3 | D6: CONTRATO LABORAL | E6: 10012 | F6: TITULADO SUPERIOR | G6: 8 | H6: 31.9 | I6: 3782.509167 | J6: 3695.468948
A7: 2 | B7: P.A.S. | C7: 3 | D7: CONTRATO LABORAL | E7: 20003 | F7: TIT. GRADO MEDIO DE APOYO A LA DOCENCIA E INVESTIGACIÓN | G7: 8 | H7: 31.9 | I7: 3358.41 | J7: 3270.935692
A8: 2 | B8: P.A.S. | C8: 3 | D8: CONTRATO LABORAL | E8: 20005 | F8: TIT. GRADO MEDIO PREV. DE RIESGOS LABORALES | G8: 8 | H8: 31.9 | I8: 3350.258333 | J8: 3263.097842
A9: 2 | B9: P.A.S. | C9: 3 | D9: CONTRATO LABORAL | E9: 20008 | F9: TITULADO DE GRADO MEDIO DE DEPORTES | G9: 8 | H9: 31.9 | I9: 3186.3625 | J9: 3105.516342
A10: 2 | B10: P.A.S. | C10: 3 | D10: CONTRATO LABORAL | E10: 20011 | F10: TRABAJADOR SOCIAL | G10: 8 | H10: 31.9 | I10: 3178.210833 | J10: 3097.678492
A11: 2 | B11: P.A.S. | C11: 3 | D11: CONTRATO LABORAL | E11: 20014 | F11: TITULADO DE GRADO MEDIO | G11: 8 | H11: 31.9 | I11: 3178.210833 | J11: 3097.678492
A12: 2 | B12: P.A.S. | C12: 3 | D12: CONTRATO LABORAL | E12: 30001 | F12: ENCARGADO DE EQUIPO LABORATORIO Y AUDIOVISUALES | G12: 8 | H12: 31.9 | I12: 2973.019167 | J12: 2889.015392
A13: 2 | B13: P.A.S. | C13: 3 | D13: CONTRATO LABORAL | E13: 30002 | F13: ENCARGADO DE EQUIPO DE CONSERJERIA | G13: 8 | H13: 32.25 | I13: 2840.610833 | J13: 2761.709192
B14: P.A.S. | C14: 3 | D14: CONTRATO LABORAL | E14: 30002 | F14: ENCARGADO DE EQUIPO DE JARDINES | G14: 8 | H14: 32.25 | I14: 2973.019167 | J14: 2889.015392
B15: P.A.S. | C15: 3 | D15: CONTRATO LABORAL | E15: 30002 | F15: ENCARGADO DE EQUIPO DE MANTENIMIENTO | G15: 8 | H15: 32.25 | I15: 2973.019167 | J15: 2889.015392
B16: P.A.S. | C16: 3 | D16: CONTRATO LABORAL | E16: 30002 | F16: ENCARGADO DE EQUIPO DE INSTALACIONES DEPORTIVAS Y CONTROLADORES DE EDIFICIOS | G16: 8 | H16: 32.25 | I16: 2973.019167 | J16: 2889.015392
A17: 2 | B17: P.A.S. | C17: 3 | D17: CONTRATO LABORAL | E17: 30003 | F17: TEC. ESPEC. SERV. TEC. OBRAS, EQUIP. Y MANTENIMIENTO | G17: 8 | H17: 32.25 | I17: 2782.605833 | J17: 2665.112287
A18: 2 | B18: P.A.S. | C18: 3 | D18: CONTRATO LABORAL | E18: 30004 | F18: CONDUCTOR MECANICO | G18: 8 | H18: 31.9 | I18: 2737.741667 | J18: 2665.112287
A19: 2 | B19: P.A.S. | C19: 3 | D19: CONTRATO LABORAL | E19: 30005 | F19: TECNICO ESPECIALISTA DE LABORATORIO | G19: 8 | H19: 31.9 | I19: 2721.435833 | J19: 2649.435737
A20: 2 | B20: P.A.S. | C20: 3 | D20: CONTRATO LABORAL | E20: 30008 | F20: TECNICO ESPECIALISTA EN HOSTELERIA | G20: 8 | H20: 31.9 | I20: 2605.341667 | J20: 2538.327569
A21: 2 | B21: P.A.S. | C21: 3 | D21: CONTRATO LABORAL | E21: 30010 | F21: TEC. ESPECIALISTA DE MEDIOS AUDIOVISUALES | G21: 8 | H21: 31.9 | I21: 2589.035833 | J21: 2522.651443
A22: 2 | B22: P.A.S. | C22: 3 | D22: CONTRATO LABORAL | E22: 30012 | F22: DELINEANTE | G22: 8 | H22: 31.9 | I22: 2580.884167 | J22: 2514.813379
A23: 2 | B23: P.A.S. | C23: 3 | D23: CONTRATO LABORAL | E23: 30013 | F23: INTERPRETE/INFORMADOR | G23: 8 | H23: 31.9 | I23: 2580.884167 | J23: 2514.813379
A24: 2 | B24: P.A.S. | C24: 3 | D24: CONTRATO LABORAL | E24: 30014 | F24: TEC. ESPECIALISTA ACTIVIDADES CULTURALES | G24: 8 | H24: 31.9 | I24: 2580.884167 | J24: 2514.813379
A25: 2 | B25: P.A.S. | C25: 3 | D25: CONTRATO LABORAL | E25: 30015 | F25: TECNICO ESPECIALISTA DE DEPORTES | G25: 8 | H25: 32.25 | I25: 2589.035833 | J25: 2522.651443
A26: 2 | B26: P.A.S. | C26: 3 | D26: CONTRATO LABORAL | E26: 30016 | F26: TEC. ESPECIALISTA DE PRENSA E INFORMACION | G26: 8 | H26: 31.9 | I26: 2580.884167 | J26: 2514.813379
A27: 2 | B27: P.A.S. | C27: 3 | D27: CONTRATO LABORAL | E27: 30017 | F27: TECNICO ESPECIALISTA DE ALMACEN | G27: 8 | H27: 32.25 | I27: 2589.035833 | J27: 2522.651443
A28: 2 | B28: P.A.S. | C28: 3 | D28: CONTRATO LABORAL | E28: 30018 | F28: TECNICO ESPECIALISTA DE TELECOMUNICACIONES | G28: 8 | H28: 31.9 | I28: 2605.341667 | J28: 2538.327569
A29: 2 | B29: P.A.S. | C29: 3 | D29: CONTRATO LABORAL | E29: 30019 | F29: TEC. ESPEC. BIBLIOTECA, ARCHIVO Y MUSEO | G29: 8 | H29: 31.9 | I29: 2589.035833 | J29: 2522.651443
A30: 2 | B30: P.A.S. | C30: 3 | D30: CONTRATO LABORAL | E30: 30021 | F30: TEC. ESPECIALISTA DE ADMON. ( A EXT.) | G30: 8 | H30: 31.9 | I30: 2580.884167 | J30: 2514.813379
A31: 2 | B31: P.A.S. | C31: 3 | D31: CONTRATO LABORAL | E31: 30022 | F31: TEC. ESPEC. PREVENCIÓN DE RIESGOS LABORALES | G31: 8 | H31: 31.9 | I31: 2713.284167 | J31: 2642.111796
A32: 2 | B32: P.A.S. | C32: 3 | D32: CONTRATO LABORAL | E32: 30023 | F32: TECNICO ESPECIALISTA | G32: 8 | H32: 31.9 | I32: 2580.884167 | J32: 2514.813379
A33: 2 | B33: P.A.S. | C33: 3 | D33: CONTRATO LABORAL | E33: 40001 | F33: TEC. AUX. SERV. TEC. OBRAS Y MANTENIMIENTO | G33: 8 | H33: 32.25 | I33: 2208.969167 | J33: 2152.59817
A34: 2 | B34: P.A.S. | C34: 3 | D34: CONTRATO LABORAL | E34: 40002 | F34: TECNICO AUXILIAR DE SEGURIDAD (A EXT. ) | G34: 8 | H34: 32.25 | I34: 2208.969167 | J34: 2152.59817
A35: 2 | B35: P.A.S. | C35: 3 | D35: CONTRATO LABORAL | E35: 40004 | F35: TECNICO AUXILIAR DE LABORATORIO | G35: 8 | H35: 31.9 | I35: 2192.663333 | J35: 2136.922044
A36: 2 | B36: P.A.S. | C36: 3 | D36: CONTRATO LABORAL | E36: 40005 | F36: MODELO EN VIVO | G36: 8 | H36: 31.9 | I36: 2192.663333 | J36: 3276.502465
A37: 2 | B37: P.A.S. | C37: 3 | D37: CONTRATO LABORAL | E37: 40007 | F37: TECNICO AUXILIAR DE HOSTELERIA | G37: 8 | H37: 31.9 | I37: 2208.969167 | J37: 2152.59817
A38: 2 | B38: P.A.S. | C38: 3 | D38: CONTRATO LABORAL | E38: 40009 | F38: TEC. AUX. DEL SERVICIO DE CONSERJERIA | G38: 8 | H38: 32.25 | I38: 2208.969167 | J38: 2152.59817
A39: 2 | B39: P.A.S. | C39: 3 | D39: CONTRATO LABORAL | E39: 40012 | F39: TECNICO AUXILIAR DE INSTALAC. DEPORTIVAS | G39: 8 | H39: 32.25 | I39: 2208.969167 | J39: 2152.59817
A40: 2 | B40: P.A.S. | C40: 3 | D40: CONTRATO LABORAL | E40: 40013 | F40: TECNICO AUXILIAR DE ALMACEN | G40: 8 | H40: 32.25 | I40: 2192.663333 | J40: 2136.922044
A41: 2 | B41: P.A.S. | C41: 3 | D41: CONTRATO LABORAL | E41: 40015 | F41: TEC. AUX. DE ADMINISTRACION ( A EXT.) | G41: 8 | H41: 31.9 | I41: 2184.511667 | J41: 2129.08398
A42: 2 | B42: P.A.S. | C42: 3 | D42: CONTRATO LABORAL | E42: 40017 | F42: TECNICO AUXILIAR DE LIMPIEZA | G42: 8 | H42: 34 | I42: 2208.969167 | J42: 2152.59817
A43: 2 | B43: P.A.S. | C43: 3 | D43: CONTRATO LABORAL | E43: PCON1 | F43: PERSONAL CON CARGO A CONVENIOS GRUPO 1 | G43: 8 | H43: 33.1 | J43: 0
A44: 2 | B44: P.A.S. | C44: 3 | D44: CONTRATO LABORAL | E44: PCON2 | F44: PERSONAL CON CARGO A CONVENIOS GRUPO 2 | G44: 8 | H44: 33.1 | J44: 0
A45: 2 | B45: P.A.S. | C45: 3 | D45: CONTRATO LABORAL | E45: PCON3 | F45: PERSONAL CON CARGO A CONVENIOS GRUPO 3 | G45: 8 | H45: 33.1 | J45: 0
A46: 2 | B46: P.A.S. | C46: 3 | D46: CONTRATO LABORAL | E46: PPRO1 | F46: PERSONAL DE PROYECTOS GRUPO 1 | G46: 8 | H46: 33.1 | J46: 0
A47: 2 | B47: P.A.S. | C47: 3 | D47: CONTRATO LABORAL | E47: PPRO2 | F47: PERSONAL DE PROYECTOS GRUPO 2 | G47: 8 | H47: 33.1 | J47: 0
A48: 2 | B48: P.A.S. | C48: 3 | D48: CONTRATO LABORAL | E48: TO1IA | F48: PERSONAL APOYO TÉCNICO A LA INVESTIGACIÓN(ADMON) | G48: 8 | H48: 33.1 | J48: 0
A49: 2 | B49: P.A.S. | C49: 3 | D49: CONTRATO LABORAL | E49: T01I | F49: PERSONAL APOYO TÉCNICO A LA INVESTIGACIÓN | G49: 8 | H49: 33.1 | J49: 0
A50: 2 | B50: P.A.S. | C50: 3 | D50: CONTRATO LABORAL | E50: T01IA | F50: PERSONAL APOYO TÉCNICO INVESTIGACIÓN (ADMINISTRACIÓN) | G50: 8 | H50: 33.1 | J50: 0
A51: 2 | B51: P.A.S. | C51: 3 | D51: CONTRATO LABORAL | E51: T01IL | F51: PERSONAL APOYO TÉCNICO INVESTIGACIÓN (LABORATORIO) | G51: 8 | H51: 33.1 | J51: 0
A52: 2 | B52: P.A.S. | C52: 3 | D52: CONTRATO LABORAL | E52: T02IL | F52: PERSONAL APOYO TÉCNICO INVESTIGACIÓN (LABORATORIO) | G52: 8 | H52: 33.1 | J52: 0
A53: 2 | B53: P.A.S. | C53: 3 | D53: CONTRATO LABORAL | E53: T03D | F53: PERS.COLABORAC.SOCIAL(R.D.1445/82 DE 25/6) | G53: 8 | H53: 2 | J53: 0
A54: 2 | B54: P.A.S. | C54: 3 | D54: CONTRATO LABORAL | E54: T03IA | F54: PERSONAL APOYO TÉCNICO INVESTIGACIÓN (ADMINISTRACIÓN) | G54: 8 | H54: 33.1 | J54: 0
A55: 2 | B55: P.A.S. | C55: 3 | D55: CONTRATO LABORAL | E55: T03IL | F55: PERSONAL APOYO TÉCNICO INVESTIGACIÓN (LABORATORIO) | G55: 8 | H55: 33.1 | J55: 0
A56: 2 | B56: P.A.S. | C56: 3 | D56: CONTRATO LABORAL | E56: T04IA | F56: PERSONAL APOYO TÉCNICO INVESTIGACIÓN (ADMINISTRACIÓN) | G56: 8 | H56: 33.1 | J56: 0

Sheet CP9 (hidden)
A1: COD_PERSONAL | B1: DESC_PERSONAL | C1: COD_NATURALEZA | D1: DESC_NATURALEZA | E1: COD_CATEGORIA | F1: DESC_CATEGORIA | G1: TipoPer | H1: % CUOTA PATRONAL | I1: BaseCotizacionMínima | J1: 2022 | K1: Actualizado multiplicando por 1,02
A2: 2 | B2: P.A.S. | C2: 5 | D2: PERSONAL EVENTUAL | E2: N1929 | F2: PERSONAL EVENTUAL | G2: 8 | H2: 26.2 | I2: =J2*1.025 -> 2749.210197 | J2: 2682.15629 | K2: Nómina con trienios
I3: =J3*1.025 -> 4164.476782 | J3: 4062.904178 | K3: Nómina con trienios

Sheet CP10 (hidden)
A1: COD_PERSONAL | B1: DESC_PERSONAL | C1: COD_NATURALEZA | D1: DESC_NATURALEZA | E1: COD_CATEGORIA | F1: DESC_CATEGORIA | G1: TipoPer | H1: % CUOTA PATRONAL | I1: BaseCotizacionMínima | J1: 2022
B2: DOCENTE | C2: 1 | D2: FUNCIONARIO DE CARRERA | E2: A0500 | F2: CATEDRÁTICO DE UNIVERSIDAD | G2: 1 | H2: 23.27 | I2: ='CP1'!I2 -> 5148.958333 | J2: 4370.193312
B3: DOCENTE | C3: 1 | D3: FUNCIONARIO DE CARRERA | E3: A0504 | F3: PROFESOR TITULAR DE UNIVERSIDAD | G3: 1 | H3: 23.27 | I3: ='CP1'!I3 -> 3943.311667 | J3: 3521.768195
A4: 1 | B4: DOCENTE | C4: 1 | D4: FUNCIONARIO DE CARRERA | E4: A0505 | F4: CATEDRÁTICO DE ESCUELA UNIVERSITARIA | G4: 1 | H4: 23.27 | I4: ='CP1'!I4 -> 3943.311667 | J4: 3521.768195
A5: 1 | B5: DOCENTE | C5: 1 | D5: FUNCIONARIO DE CARRERA | E5: A0506 | F5: PROFESOR TITULAR DE ESCUELA UNIVERSITARIA | G5: 1 | H5: 23.27 | I5: ='CP1'!I5 -> 3436.988333 | J5: 3118.617805
B6: DOCENTE | C6: 1 | D6: FUNCIONARIO DE CARRERA | E6: A48EC | F6: PROFESOR AGREGADO DE BACHILLERATO | G6: 1 | H6: 23.27 | I6: =J6*1.025 -> 3375.626007 | J6: 3293.293666
B7: DOCENTE | C7: 1 | D7: FUNCIONARIO DE CARRERA | E7: A24EC | F7: AYUDANTE TÉCNICO DE ESCUELA ARTES APLIC. Y OFICIOS ARTÍSTICOS | G7: 1 | H7: 23.27 | I7: =J7*1.025 -> 2946.277841 | J7: 2874.417406
B8: DOCENTE | C8: 1 | D8: FUNCIONARIO DE CARRERA | E8: A33EC | F8: PROFESOR DE ESCUELA DE MAESTRÍA INDUSTRIAL | G8: 1 | H8: 23.27 | I8: =J8*1.025 -> 3578.683779 | J8: 3491.398808
B9: DOCENTE | C9: 1 | D9: FUNCIONARIO DE CARRERA | E9: A35EC | F9: PROFESOR TÉCNICO DE F.P. | G9: 1 | H9: 23.27 | I9: =J9*1.025 -> 2946.277841 | J9: 2874.417406
D44: Granada | G44: 2021-02-05

Sheet CDestino (hidden)
A1: C. Destino | B1: C.D. MENSUAL | C1: Calidad a 4.5 tramos | D1: Total Prorrateado en 12 | E1: 2022 | G1: C.Específico | H1: C.E. MENSUAL | I1: C.E. ANUAL (x14) | J1: Total Prorrateado en 12 | K1: 2022
A2: 30 | B2: 1125.35 | C2: 0 | D2: 1081.9854 | E2: Actualizado multiplciando por 1,02 | G2: g | H2: 4284.3 | I2: 59980.2 | J2: 4284.3
A3: 29 | B3: 1009.38 | C3: 6449.325595 | D3: 1507.933 | G3: 1a | H3: 2231.89 | I3: 31246.46 | J3: 2231.89
A4: 28 | B4: 966.96 | C4: 6449.325595 | D4: 1467.1534 | G4: 2a | H4: 1476 | I4: 20664 | J4: 1476
A5: 27 | B5: 924.48 | C5: 5529.815015 | D5: 1349.676518 | G5: 2b | H5: 897.07 | I5: 12558.98 | J5: 897.07
A6: 26 | B6: 811.08 | C6: 5529.815015 | D6: 1240.648718 | G6: 2c | H6: 1072.49 | I6: 15014.86 | J6: 1072.49
A7: 25 | B7: 719.6 | C7: 4487.615888 | D7: 1065.844191 | G7: 3a | H7: 1303.09 | I7: 18243.26 | J7: 1303.09
A8: 24 | B8: 677.15 | C8: 4487.615888 | D8: 1025.023791 | G8: 3b | H8: 1195.04 | I8: 16730.56 | J8: 1195.04
A9: 23 | B9: 634.75 | C9: 4032.903581 | D9: 946.3718984 | G9: 3c | H9: 1070.97 | I9: 14993.58 | J9: 1070.97
A10: 22 | B10: 592.27 | C10: 4032.903581 | D10: 905.5208984 | G10: 3d | H10: 887.04 | I10: 12418.56 | J10: 887.04
A11: 21 | B11: 549.88 | C11: 4032.903581 | D11: 864.7718984 | G11: 3e | H11: 880.05 | I11: 12320.7 | J11: 880.05
A12: 20 | B12: 510.79 | C12: 3515.308375 | D12: 784.0519646 | G12: 3f | H12: 837.59 | I12: 11726.26 | J12: 837.59
A13: 19 | B13: 484.72 | C13: 3515.308375 | D13: 758.9905646 | G13: 3g | H13: 739.57 | I13: 10353.98 | J13: 739.57
A14: 18 | B14: 458.64 | C14: 3238.510414 | D14: 710.8422679 | G14: 3h | H14: 732.63 | I14: 10256.82 | J14: 732.63
A15: 17 | B15: 432.54 | C15: 3238.510414 | D15: 685.7502679 | G15: 3i | H15: 966.5 | I15: 13531 | J15: 966.5
A16: 16 | B16: 406.52 | C16: 3238.510414 | D16: 660.7296679 | G16: 4a | H16: 935.91 | I16: 13102.74 | J16: 935.91
A17: 15 | B17: 380.39 | C17: 3238.510414 | D17: 635.6070679 | G17: 4b | H17: 876.2 | I17: 12266.8 | J17: 876.2
G18: 4b1 | H18: 856.24 | I18: 11987.36 | J18: 856.24
G19: 4b2 | H19: 797.01 | I19: 11158.14 | J19: 797.01
G20: 4c | H20: 762.71 | I20: 10677.94 | J20: 762.71
G21: 5a | H21: 895.78 | I21: 12540.92 | J21: 895.78
G22: 5b | H22: 850.25 | I22: 11903.5 | J22: 850.25
G23: 5c | H23: 824.22 | I23: 11539.08 | J23: 824.22
G24: 5d | H24: 803.25 | I24: 11245.5 | J24: 803.25
G25: 5e | H25: 796.28 | I25: 11147.92 | J25: 796.28
G26: 5f | H26: 790.24 | I26: 11063.36 | J26: 790.24
G27: 5g | H27: 782.3 | I27: 10952.2 | J27: 782.3
G28: 5h | H28: 775.32 | I28: 10854.48 | J28: 775.32
G29: 5i | H29: 736.78 | I29: 10314.92 | J29: 736.78
G30: 5j | H30: 722.8 | I30: 10119.2 | J30: 722.8
G31: 5k | H31: 715.8 | I31: 10021.2 | J31: 715.8
G32: 5l | H32: 696.72 | I32: 9754.08 | J32: 696.72
G33: 5m | H33: 689.73 | I33: 9656.22 | J33: 689.73
G34: 6a | H34: 613.5 | I34: 8589 | J34: 613.5
G35: 7a | H35: 639.59 | I35: 8954.26 | J35: 639.59
G36: 7b | H36: 575.22 | I36: 8053.08 | J36: 575.22
G37: 8a | H37: 715.32 | I37: 10014.48 | J37: 715.32
G38: 8b | H38: 629.75 | I38: 8816.5 | J38: 629.75
D44: Granada

Sheet CuotaPatronal (hidden)
A1: COD_PERSONAL | B1: DESC_PERSONAL | C1: COD_NATURALEZA | D1: DESC_NATURALEZA | E1: COD_CATEGORIA | F1: DESC_CATEGORIA | G1: TipoPer | H1: % CUOTA PATRONAL
A2: 1 | B2: DOCENTE | C2: 0 | D2: SIN RELACIÓN JURÍDICA CON LA UNIV | E2: CEUG | F2: COLABORADOR EXTRAORDINARIO | H2: 0
A3: 1 | B3: DOCENTE | C3: 0 | D3: SIN RELACIÓN JURÍDICA CON LA UNIV | E3: PEUGR | F3: PROFESOR EMÉRITO | H3: 0
A4: 1 | B4: DOCENTE | C4: 0 | D4: SIN RELACIÓN JURÍDICA CON LA UNIV | E4: UGVLC | F4: PROFESOR VISITANTE LABORAL | H4: 0
B5: DOCENTE | C5: 1 | D5: FUNCIONARIO DE CARRERA | E5: A0500 | F5: CATEDRÁTICO DE UNIVERSIDAD ANTERIOR 31/12/2010 | G5: 1 | H5: 0
B6: DOCENTE | C6: 1 | D6: FUNCIONARIO DE CARRERA | E6: A24EC | F6: AYUDANTE TÉCNICO DE ESCUELA ARTES APLIC. Y OFICIOS ARTÍSTICOS ANTERIOR 31/12/2010 | G6: 1 | H6: 0
B7: DOCENTE | C7: 1 | D7: FUNCIONARIO DE CARRERA | E7: A33EC | F7: PROFESOR DE ESCUELA DE MAESTRÍA INDUSTRIAL ANTERIOR 31/12/2010 | G7: 1 | H7: 0
B8: DOCENTE | C8: 1 | D8: FUNCIONARIO DE CARRERA | E8: A35EC | F8: PROFESOR TÉCNICO DE F.P. ANTERIOR 31/12/2010 | G8: 1 | H8: 0
B9: DOCENTE | C9: 1 | D9: FUNCIONARIO DE CARRERA | E9: A48EC | F9: PROFESOR AGREGADO DE BACHILLERATO ANTERIOR 31/12/2010 | G9: 1 | H9: 0
A10: 1 | B10: DOCENTE | C10: 1 | D10: FUNCIONARIO DE CARRERA | E10: A0505 | F10: CATEDRÁTICO DE ESCUELA UNIVERSITARIA POSTERIOR 01/01/2011 | G10: 1 | H10: 0
A11: 1 | B11: DOCENTE | C11: 1 | D11: FUNCIONARIO DE CARRERA | E11: A0506 | F11: PROFESOR TITULAR DE ESCUELA UNIVERSITARIA POSTERIOR 01/01/2011 | G11: 1 | H11: 0
B12: DOCENTE | C12: 1 | D12: FUNCIONARIO DE CARRERA | E12: A0500 | F12: CATEDRÁTICO DE UNIVERSIDAD POSTERIOR 01/01/2011 | G12: 1 | H12: 22.65
B13: DOCENTE | C13: 1 | D13: FUNCIONARIO DE CARRERA | E13: A0504 | F13: PROFESOR TITULAR DE UNIVERSIDAD POSTERIOR 01/01/2011 | G13: 1 | H13: 22.65
A14: 1 | B14: DOCENTE | C14: 1 | D14: FUNCIONARIO DE CARRERA | E14: A24EC | F14: AYUDANTE TÉCNICO DE ESCUELA ARTES APLIC. Y OFICIOS ARTÍSTICOS POSTERIOR 01/01/2011 | G14: 1 | H14: 22.65
A15: 1 | B15: DOCENTE | C15: 1 | D15: FUNCIONARIO DE CARRERA | E15: A33EC | F15: PROFESOR DE ESCUELA DE MAESTRÍA INDUSTRIAL POSTERIOR 01/01/2011 | G15: 1 | H15: 22.65
A16: 1 | B16: DOCENTE | C16: 1 | D16: FUNCIONARIO DE CARRERA | E16: A35EC | F16: PROFESOR TÉCNICO DE F.P. POSTERIOR 01/01/2011 | G16: 1 | H16: 22.65
A17: 1 | B17: DOCENTE | C17: 1 | D17: FUNCIONARIO DE CARRERA | E17: A48EC | F17: PROFESOR AGREGADO DE BACHILLERATO POSTERIOR 01/01/2011 | G17: 1 | H17: 22.65
A18: 1 | B18: DOCENTE | C18: 2 | D18: FUNCIONARIO DE EMPLEO INTERINO | E18: I0504 | F18: PROFESOR TITULAR INTERINO DE UNIVERSIDAD TIEMPO COMPLETO | G18: 2 | H18: 30.7
A19: 1 | B19: DOCENTE | C19: 2 | D19: FUNCIONARIO DE EMPLEO INTERINO | E19: I0506 | F19: PROFESOR TITULAR INTERINO DE ESCUELA UNIVERSITARIA TIEMPO COMPLETO | G19: 2 | H19: 30.7
A20: 1 | B20: DOCENTE | C20: 3 | D20: CONTRATO LABORAL | E20: PEUEC | F20: PROFESOR DE LA E. U. DE ENFERMERÍA DE CEUTA "A EXTINGUIR" | G20: 3 | H20: 30.9
B21: DOCENTE | C21: 3 | D21: CONTRATO LABORAL | E21: PEUEC | F21: PROFESOR DE LA E. U. DE ENFERMERÍA DE CEUTA "A EXTINGUIR" TIEMPO PARCIAL | G21: 3 | H21: 32.1
A22: 1 | B22: DOCENTE | C22: 3 | D22: CONTRATO LABORAL | E22: T43L | F22: PROFESOR LABORAL PERMANENTE | G22: 3 | H22: 30.9
A23: 1 | B23: DOCENTE | C23: 3 | D23: CONTRATO LABORAL | E23: T74C | F23: PROFESOR ASOCIADO EXTRANJERO | G23: 3 | H23: 30.7
A24: 1 | B24: DOCENTE | C24: 3 | D24: CONTRATO LABORAL | E24: T80C | F24: PROFESOR DE EDUCACION FÍSICA * A EXTINGUIR | G24: 3 | H24: 30.9
A25: 1 | B25: DOCENTE | C25: 3 | D25: CONTRATO LABORAL | E25: UGADR | F25: PROFESOR AYUDANTE DOCTOR | G25: 3 | H25: 30.9
A26: 1 | B26: DOCENTE | C26: 3 | D26: CONTRATO LABORAL | E26: UGA1L | F26: PROFESOR ASOCIADO LABORAL | G26: 3 | H26: 32.1
A27: 1 | B27: DOCENTE | C27: 3 | D27: CONTRATO LABORAL | E27: UGCDI | F27: PROFESOR CONTRATADO DOCTOR INTERINO | G27: 3 | H27: 30.9
A28: 1 | B28: DOCENTE | C28: 3 | D28: CONTRATO LABORAL | E28: UGCDR | F28: PROFESOR CONTRATADO DOCTOR | G28: 3 | H28: 30.9
A29: 1 | B29: DOCENTE | C29: 3 | D29: CONTRATO LABORAL | E29: UGCLB | F29: PROFESOR COLABORADOR | G29: 3 | H29: 30.9
A30: 1 | B30: DOCENTE | C30: 3 | D30: CONTRATO LABORAL | E30: UGCSL | F30: PROFESOR ASOCIADO CIENCIAS SALUD | G30: 3 | H30: 32.1
A31: 1 | B31: DOCENTE | C31: 3 | D31: CONTRATO LABORAL | E31: UGISD | F31: PROFESOR SUSTITUTO INTERINO | G31: 3 | H31: 30.9
A32: 1 | B32: DOCENTE | C32: 3 | D32: CONTRATO LABORAL | E32: UGISP | F32: PROFESOR SUSTITUTO INTERINO TIEMPO PARCIAL | G32: 3 | H32: 30.9
A33: 1 | B33: DOCENTE | C33: 3 | D33: CONTRATO LABORAL | E33: UGVLC | F33: PROFESOR VISITANTE LABORAL | G33: 3 | H33: 32.1
B34: DOCENTE | C34: 3 | D34: CONTRATO LABORAL | F34: PROFESOR VISITANTE LABORAL- TIEMPO PARCIAL | G34: 3 | H34: 32.1
A35: 2 | B35: P.A.S. | C35: 1 | D35: FUNCIONARIO DE CARRERA | E35: A7077 | F35: ESCALA DE GESTION UNIVERSIDAD DE CORDOBA | G35: 6 | H35: 25.2
A36: 2 | B36: P.A.S. | C36: 1 | D36: FUNCIONARIO DE CARRERA | E36: A7080 | F36: ESCALA TECNICA DE LA UNIVERSIDAD DE GRANADA | G36: 6 | H36: 25.2
A37: 2 | B37: P.A.S. | C37: 1 | D37: FUNCIONARIO DE CARRERA | E37: A7081 | F37: ESCALA FACULTATIVA ARCHIVOS,BIBLIT.Y M.UNIVERSIDAD GRANADA | G37: 6 | H37: 25.2
A38: 2 | B38: P.A.S. | C38: 1 | D38: FUNCIONARIO DE CARRERA | E38: A7082 | F38: ESCALA DE GESTION DE LA UNIVERSIDAD DE GRANADA | G38: 6 | H38: 25.2
A39: 2 | B39: P.A.S. | C39: 1 | D39: FUNCIONARIO DE CARRERA | E39: A7083 | F39: ESCALA AYUDANTES ARCHIVOS,BIBL.Y M. UNIVERSIDAD GRANADA | G39: 6 | H39: 25.2
A40: 2 | B40: P.A.S. | C40: 1 | D40: FUNCIONARIO DE CARRERA | E40: A7084 | F40: ESCALA ADMINISTRATIVA UNIVERSIDAD DE GRANADA | G40: 6 | H40: 25.2
A41: 2 | B41: P.A.S. | C41: 1 | D41: FUNCIONARIO DE CARRERA | E41: A7094 | F41: ESCALA ADMINISTRATIVA DE LA UNIV.DE MALAGA | G41: 6 | H41: 25.2
A42: 2 | B42: P.A.S. | C42: 1 | D42: FUNCIONARIO DE CARRERA | E42: A7105 | F42: ESCALA ADMINISTRATIVA UNIVERSIDAD DE SEVILLA | G42: 6 | H42: 25.2
A43: 2 | B43: P.A.S. | C43: 1 | D43: FUNCIONARIO DE CARRERA | E43: A7127 | F43: ESC.ADMINISTRATIVA UNIVERSIDAD DE HUELVA | G43: 6 | H43: 25.2
A44: 2 | B44: P.A.S. | C44: 1 | D44: FUNCIONARIO DE CARRERA | E44: A7346 | F44: ESCALA ADMINISTRATIVA DE LA UNIVERSIDAD DE TARRAGONA | G44: 6 | H44: 25.2
A45: 2 | B45: P.A.S. | C45: 1 | D45: FUNCIONARIO DE CARRERA | E45: A7487 | F45: ESCALA TECNICA GESTION UNV.GRANADA(ESP. INFORMATICA) | G45: 6 | H45: 25.2
A46: 2 | B46: P.A.S. | C46: 1 | D46: FUNCIONARIO DE CARRERA | E46: A7488 | F46: ESCALA DE GESTION UNIVERSIDAD GRANADA (ESP.INFORMATICA) | G46: 6 | H46: 25.2
A47: 2 | B47: P.A.S. | C47: 1 | D47: FUNCIONARIO DE CARRERA | E47: A7489 | F47: ESCALA ADMINISTRATIVA UNV. GRANADA (ESP. INFORMATICA) | G47: 6 | H47: 25.2
A48: 2 | B48: P.A.S. | C48: 1 | D48: FUNCIONARIO DE CARRERA | E48: A7490 | F48: ESCALA DE GESTION (ESPECIALIDAD INGENIERO TECNICO INDRUSTRIAL) | G48: 6 | H48: 25.2
A49: 2 | B49: P.A.S. | C49: 1 | D49: FUNCIONARIO DE CARRERA | E49: A7505 | F49: ESC.AYUDANTES ARCHIV.BLIBLIOT.UNI. JAEN | G49: 6 | H49: 25.2
A50: 2 | B50: P.A.S. | C50: 1 | D50: FUNCIONARIO DE CARRERA | E50: A7507 | F50: ESCALA TECNICA DE ADMINISTRACION DE LA UNIVERSIDAD DE JAEN | G50: 6 | H50: 25.2
A51: 2 | B51: P.A.S. | C51: 1 | D51: FUNCIONARIO DE CARRERA | E51: A7508 | F51: ESCALA FACULTATIVA ARCH,BIBLIO, Y MUSEOS U.JAEN | G51: 6 | H51: 25.2
A52: 2 | B52: P.A.S. | C52: 1 | D52: FUNCIONARIO DE CARRERA | E52: A7510 | F52: ESCALA DE GESTIÓN DE LA UNIVERSIDAD DE JAÉN | G52: 6 | H52: 25.2
A53: 2 | B53: P.A.S. | C53: 1 | D53: FUNCIONARIO DE CARRERA | E53: A7511 | F53: PROGRAMADORES INFORMATICOS UJA | G53: 6 | H53: 25.2
A54: 2 | B54: P.A.S. | C54: 1 | D54: FUNCIONARIO DE CARRERA | E54: A7512 | F54: ESC.ADMINISTRATIVA UNIVERSIDAD DE JAEN | G54: 6 | H54: 25.2
A55: 2 | B55: P.A.S. | C55: 1 | D55: FUNCIONARIO DE CARRERA | E55: A7520 | F55: ESCALA AYUDANTES DE ARCH.,BIBL.Y MUS.DE LA UNIV.ALMERIA | G55: 6 | H55: 25.2
A56: 2 | B56: P.A.S. | C56: 1 | D56: FUNCIONARIO DE CARRERA | E56: A7521 | F56: ESCALA ADMINISTRATIVA DE LA UNIVERSIDAD DE ALMERIA | G56: 6 | H56: 25.2
A57: 2 | B57: P.A.S. | C57: 1 | D57: FUNCIONARIO DE CARRERA | E57: A7744 | F57: ESCALA TECNICA DE ADMINISTRACION U. DE GRANADA | G57: 6 | H57: 25.2
A58: 2 | B58: P.A.S. | C58: 1 | D58: FUNCIONARIO DE CARRERA | E58: A7745 | F58: ESCALA TECNICA DE INFORMATICA UNIV. GRANADA | G58: 6 | H58: 25.2
A59: 2 | B59: P.A.S. | C59: 1 | D59: FUNCIONARIO DE CARRERA | E59: A7746 | F59: ESCALA TECNICA PROFESIONAL UNIVERSIDAD DE GRANADA | G59: 6 | H59: 25.2
A60: 2 | B60: P.A.S. | C60: 1 | D60: FUNCIONARIO DE CARRERA | E60: A7747 | F60: ESCALA GESTION ADMINISTRATIVA U. DE GRANADA | G60: 6 | H60: 25.2
A61: 2 | B61: P.A.S. | C61: 1 | D61: FUNCIONARIO DE CARRERA | E61: A7748 | F61: ESCALA GESTION INFORMATICA UNIVERSIDAD DE GRANADA | G61: 6 | H61: 25.2
A62: 2 | B62: P.A.S. | C62: 1 | D62: FUNCIONARIO DE CARRERA | E62: A7749 | F62: ESCALA GESTION PROFESIONAL UNIVERSIDAD DE GRANADA | G62: 6 | H62: 25.2
A63: 2 | B63: P.A.S. | C63: 1 | D63: FUNCIONARIO DE CARRERA | E63: G7042 | F63: ESCALA ADMINISTRATIVA UNIVERSIDAD VALENCIA | G63: 6 | H63: 25.2
A64: 2 | B64: P.A.S. | C64: 2 | D64: FUNCIONARIO DE EMPLEO INTERINO | E64: I7083 | F64: E. AYUD. ARCHIVOS BIBLIOT. Y MUSEOS U. GRANADA INTERINO | G64: 7 | H64: 30.7
A65: 2 | B65: P.A.S. | C65: 2 | D65: FUNCIONARIO DE EMPLEO INTERINO | E65: I7086 | F65: ESCALA AUXILIAR U.GRANADA INTERINO | G65: 7 | H65: 30.7
A66: 2 | B66: P.A.S. | C66: 2 | D66: FUNCIONARIO DE EMPLEO INTERINO | E66: I7488 | F66: ESCALA INTERINA GESTION INFORMATICA. UNIVERSIDAD DE GRANADA | G66: 7 | H66: 30.7
A67: 2 | B67: P.A.S. | C67: 2 | D67: FUNCIONARIO DE EMPLEO INTERINO | E67: I7490 | F67: ESCALA GESTION INTERINA(ESP. INGENIERO TECNICO INDUSTRIAL | G67: 7 | H67: 30.7
A68: 2 | B68: P.A.S. | C68: 2 | D68: FUNCIONARIO DE EMPLEO INTERINO | E68: I7746 | F68: ESCALA TECNICA PROFESIONAL INTERINA UNIVERSIDAD DE GRANADA | G68: 7 | H68: 30.7
A69: 2 | B69: P.A.S. | C69: 2 | D69: FUNCIONARIO DE EMPLEO INTERINO | E69: I7749 | F69: ESCALA GESTION PROFESIONAL INTERINA UNIVERSIDAD DE GRANADA | G69: 7 | H69: 30.7
A70: 2 | B70: P.A.S. | C70: 3 | D70: CONTRATO LABORAL | E70: PCON1 | F70: PERSONAL CON CARGO A CONVENIOS GRUPO 1 | G70: 8 | H70: 32.1
A71: 2 | B71: P.A.S. | C71: 3 | D71: CONTRATO LABORAL | E71: PCON2 | F71: PERSONAL CON CARGO A CONVENIOS GRUPO 2 | G71: 8 | H71: 32.1
A72: 2 | B72: P.A.S. | C72: 3 | D72: CONTRATO LABORAL | E72: PCON3 | F72: PERSONAL CON CARGO A CONVENIOS GRUPO 3 | G72: 8 | H72: 32.1
A73: 2 | B73: P.A.S. | C73: 3 | D73: CONTRATO LABORAL | E73: PPRO1 | F73: PERSONAL DE PROYECTOS GRUPO 1 | G73: 8 | H73: 32.1
A74: 2 | B74: P.A.S. | C74: 3 | D74: CONTRATO LABORAL | E74: PPRO2 | F74: PERSONAL DE PROYECTOS GRUPO 2 | G74: 8 | H74: 32.1
A75: 2 | B75: P.A.S. | C75: 3 | D75: CONTRATO LABORAL | E75: TO1IA | F75: PERSONAL APOYO TÉCNICO A LA INVESTIGACIÓN(ADMON) | G75: 8 | H75: 32.1
A76: 2 | B76: P.A.S. | C76: 3 | D76: CONTRATO LABORAL | E76: T01I | F76: PERSONAL APOYO TÉCNICO A LA INVESTIGACIÓN | G76: 8 | H76: 32.1
A77: 2 | B77: P.A.S. | C77: 3 | D77: CONTRATO LABORAL | E77: T01IA | F77: PERSONAL APOYO TÉCNICO INVESTIGACIÓN (ADMINISTRACIÓN) | G77: 8 | H77: 32.1
A78: 2 | B78: P.A.S. | C78: 3 | D78: CONTRATO LABORAL | E78: T01IL | F78: PERSONAL APOYO TÉCNICO INVESTIGACIÓN (LABORATORIO) | G78: 8 | H78: 32.1
A79: 2 | B79: P.A.S. | C79: 3 | D79: CONTRATO LABORAL | E79: T02IL | F79: PERSONAL APOYO TÉCNICO INVESTIGACIÓN (LABORATORIO) | G79: 8 | H79: 32.1
A80: 2 | B80: P.A.S. | C80: 3 | D80: CONTRATO LABORAL | E80: T03D | F80: PERS.COLABORAC.SOCIAL(R.D.1445/82 DE 25/6) | G80: 8 | H80: 1
A81: 2 | B81: P.A.S. | C81: 3 | D81: CONTRATO LABORAL | E81: T03IA | F81: PERSONAL APOYO TÉCNICO INVESTIGACIÓN (ADMINISTRACIÓN) | G81: 8 | H81: 32.1
A82: 2 | B82: P.A.S. | C82: 3 | D82: CONTRATO LABORAL | E82: T03IL | F82: PERSONAL APOYO TÉCNICO INVESTIGACIÓN (LABORATORIO) | G82: 8 | H82: 32.1
A83: 2 | B83: P.A.S. | C83: 3 | D83: CONTRATO LABORAL | E83: T04IA | F83: PERSONAL APOYO TÉCNICO INVESTIGACIÓN (ADMINISTRACIÓN) | G83: 8 | H83: 32.1
A84: 2 | B84: P.A.S. | C84: 3 | D84: CONTRATO LABORAL | E84: 10003 | F84: TIT. SUPERIOR DE APOYO A LA DOCENCIA E INVESTIGACIÓN | G84: 8 | H84: 30.9
A85: 2 | B85: P.A.S. | C85: 3 | D85: CONTRATO LABORAL | E85: 10005 | F85: TITULADO SUPERIOR DE PRENSA E INFORMACIÓN | G85: 8 | H85: 30.9
A86: 2 | B86: P.A.S. | C86: 3 | D86: CONTRATO LABORAL | E86: 10006 | F86: TITULADO SUPERIOR DE DEPORTES | G86: 8 | H86: 30.9
A87: 2 | B87: P.A.S. | C87: 3 | D87: CONTRATO LABORAL | E87: 10011 | F87: TITULADO SUPERIOR DE ACTIVIDADES CULTURALES | G87: 8 | H87: 30.9
A88: 2 | B88: P.A.S. | C88: 3 | D88: CONTRATO LABORAL | E88: 10012 | F88: TITULADO SUPERIOR | G88: 8 | H88: 30.9
A89: 2 | B89: P.A.S. | C89: 3 | D89: CONTRATO LABORAL | E89: 20003 | F89: TIT. GRADO MEDIO DE APOYO A LA DOCENCIA E INVESTIGACIÓN | G89: 8 | H89: 30.9
A90: 2 | B90: P.A.S. | C90: 3 | D90: CONTRATO LABORAL | E90: 20005 | F90: TIT. GRADO MEDIO PREV. DE RIESGOS LABORALES | G90: 8 | H90: 30.9
A91: 2 | B91: P.A.S. | C91: 3 | D91: CONTRATO LABORAL | E91: 20008 | F91: TITULADO DE GRADO MEDIO DE DEPORTES | G91: 8 | H91: 30.9
A92: 2 | B92: P.A.S. | C92: 3 | D92: CONTRATO LABORAL | E92: 20011 | F92: TRABAJADOR SOCIAL | G92: 8 | H92: 30.9
A93: 2 | B93: P.A.S. | C93: 3 | D93: CONTRATO LABORAL | E93: 20014 | F93: TITULADO DE GRADO MEDIO | G93: 8 | H93: 30.9
A94: 2 | B94: P.A.S. | C94: 3 | D94: CONTRATO LABORAL | E94: 30001 | F94: ENCARGADO DE EQUIPO LABORATORIO Y AUDIOVISUALES | G94: 8 | H94: 30.9
A95: 2 | B95: P.A.S. | C95: 3 | D95: CONTRATO LABORAL | E95: 30002 | F95: ENCARGADO DE EQUIPO DE CONSERJERIA | G95: 8 | H95: 31.75
B96: P.A.S. | C96: 3 | D96: CONTRATO LABORAL | E96: 30002 | F96: ENCARGADO DE EQUIPO DE JARDINES | G96: 8 | H96: 31.75
B97: P.A.S. | C97: 3 | D97: CONTRATO LABORAL | E97: 30002 | F97: ENCARGADO DE EQUIPO DE MANTENIMIENTO | G97: 8 | H97: 31.75
B98: P.A.S. | C98: 3 | D98: CONTRATO LABORAL | E98: 30002 | F98: ENCARGADO DE EQUIPO DE INSTALACIONES DEPORTIVAS Y CONTROLADORES DE EDIFICIOS | G98: 8 | H98: 31.75
A99: 2 | B99: P.A.S. | C99: 3 | D99: CONTRATO LABORAL | E99: 30003 | F99: TEC. ESPEC. SERV. TEC. OBRAS, EQUIP. Y MANTENIMIENTO | G99: 8 | H99: 31.75
A100: 2 | B100: P.A.S. | C100: 3 | D100: CONTRATO LABORAL | E100: 30004 | F100: CONDUCTOR MECANICO | G100: 8 | H100: 30.9
A101: 2 | B101: P.A.S. | C101: 3 | D101: CONTRATO LABORAL | E101: 30005 | F101: TECNICO ESPECIALISTA DE LABORATORIO | G101: 8 | H101: 30.9
A102: 2 | B102: P.A.S. | C102: 3 | D102: CONTRATO LABORAL | E102: 30008 | F102: TECNICO ESPECIALISTA EN HOSTELERIA | G102: 8 | H102: 31.15
A103: 2 | B103: P.A.S. | C103: 3 | D103: CONTRATO LABORAL | E103: 30010 | F103: TEC. ESPECIALISTA DE MEDIOS AUDIOVISUALES | G103: 8 | H103: 30.9
A104: 2 | B104: P.A.S. | C104: 3 | D104: CONTRATO LABORAL | E104: 30012 | F104: DELINEANTE | G104: 8 | H104: 30.9
A105: 2 | B105: P.A.S. | C105: 3 | D105: CONTRATO LABORAL | E105: 30013 | F105: INTERPRETE/INFORMADOR | G105: 8 | H105: 30.9
A106: 2 | B106: P.A.S. | C106: 3 | D106: CONTRATO LABORAL | E106: 30014 | F106: TEC. ESPECIALISTA ACTIVIDADES CULTURALES | G106: 8 | H106: 30.9
A107: 2 | B107: P.A.S. | C107: 3 | D107: CONTRATO LABORAL | E107: 30015 | F107: TECNICO ESPECIALISTA DE DEPORTES | G107: 8 | H107: 31.75
A108: 2 | B108: P.A.S. | C108: 3 | D108: CONTRATO LABORAL | E108: 30016 | F108: TEC. ESPECIALISTA DE PRENSA E INFORMACION | G108: 8 | H108: 30.9
A109: 2 | B109: P.A.S. | C109: 3 | D109: CONTRATO LABORAL | E109: 30017 | F109: TECNICO ESPECIALISTA DE ALMACEN | G109: 8 | H109: 31.75
A110: 2 | B110: P.A.S. | C110: 3 | D110: CONTRATO LABORAL | E110: 30018 | F110: TECNICO ESPECIALISTA DE TELECOMUNICACIONES | G110: 8 | H110: 30.9
A111: 2 | B111: P.A.S. | C111: 3 | D111: CONTRATO LABORAL | E111: 30019 | F111: TEC. ESPEC. BIBLIOTECA, ARCHIVO Y MUSEO | G111: 8 | H111: 30.9
A112: 2 | B112: P.A.S. | C112: 3 | D112: CONTRATO LABORAL | E112: 30021 | F112: TEC. ESPECIALISTA DE ADMON. ( A EXT.) | G112: 8 | H112: 30.9
A113: 2 | B113: P.A.S. | C113: 3 | D113: CONTRATO LABORAL | E113: 30022 | F113: TEC. ESPEC. PREVENCIÓN DE RIESGOS LABORALES | G113: 8 | H113: 30.9
A114: 2 | B114: P.A.S. | C114: 3 | D114: CONTRATO LABORAL | E114: 30023 | F114: TECNICO ESPECIALISTA | G114: 8 | H114: 30.9
A115: 2 | B115: P.A.S. | C115: 3 | D115: CONTRATO LABORAL | E115: 40001 | F115: TEC. AUX. SERV. TEC. OBRAS Y MANTENIMIENTO | G115: 8 | H115: 31.75
A116: 2 | B116: P.A.S. | C116: 3 | D116: CONTRATO LABORAL | E116: 40002 | F116: TECNICO AUXILIAR DE SEGURIDAD (A EXT. ) | G116: 8 | H116: 31.75
A117: 2 | B117: P.A.S. | C117: 3 | D117: CONTRATO LABORAL | E117: 40004 | F117: TECNICO AUXILIAR DE LABORATORIO | G117: 8 | H117: 30.9
A118: 2 | B118: P.A.S. | C118: 3 | D118: CONTRATO LABORAL | E118: 40005 | F118: MODELO EN VIVO | G118: 8 | H118: 30.9
A119: 2 | B119: P.A.S. | C119: 3 | D119: CONTRATO LABORAL | E119: 40007 | F119: TECNICO AUXILIAR DE HOSTELERIA | G119: 8 | H119: 31.15
A120: 2 | B120: P.A.S. | C120: 3 | D120: CONTRATO LABORAL | E120: 40009 | F120: TEC. AUX. DEL SERVICIO DE CONSERJERIA | G120: 8 | H120: 31.75
A121: 2 | B121: P.A.S. | C121: 3 | D121: CONTRATO LABORAL | E121: 40012 | F121: TECNICO AUXILIAR DE INSTALAC. DEPORTIVAS | G121: 8 | H121: 31.75
A122: 2 | B122: P.A.S. | C122: 3 | D122: CONTRATO LABORAL | E122: 40013 | F122: TECNICO AUXILIAR DE ALMACEN | G122: 8 | H122: 31.75
A123: 2 | B123: P.A.S. | C123: 3 | D123: CONTRATO LABORAL | E123: 40015 | F123: TEC. AUX. DE ADMINISTRACION ( A EXT.) | G123: 8 | H123: 30.9
A124: 2 | B124: P.A.S. | C124: 3 | D124: CONTRATO LABORAL | E124: 40017 | F124: TECNICO AUXILIAR DE LIMPIEZA | G124: 8 | H124: 33.5
A125: 2 | B125: P.A.S. | C125: 5 | D125: PERSONAL EVENTUAL | E125: N1929 | F125: PERSONAL EVENTUAL | G125: 8 | H125: 25.2
A126: 6 | B126: INVESTIGADOR CONTRATADO | C126: 3 | D126: CONTRATO LABORAL | E126: APPP | F126: AYUDA PUENTE DOCTORES PLAN PROPIO | G126: 4 | H126: 32.1
A127: 6 | B127: INVESTIGADOR CONTRATADO | C127: 3 | D127: CONTRATO LABORAL | E127: CDPE | F127: CONTRATOS DOCTORES PROYECTOS DE EXCELENCIA | G127: 4 | H127: 32.1
A128: 6 | B128: INVESTIGADOR CONTRATADO | C128: 3 | D128: CONTRATO LABORAL | E128: CIPR | F128: CONTRATO INVESTIGADOR CON CARGO A PROYECTO | G128: 4 | H128: 32.1
A129: 6 | B129: INVESTIGADOR CONTRATADO | C129: 3 | D129: CONTRATO LABORAL | E129: FPDID | F129: INVESTIGADOR DOCTOR JUNTA ANDALUCIA AREAS DEFICITARIAS | G129: 4 | H129: 32.1
A130: 6 | B130: INVESTIGADOR CONTRATADO | C130: 3 | D130: CONTRATO LABORAL | E130: FPU11 | F130: CONTRATOS PREDOCTORALES LEY 14/2011 FPU | G130: 4 | H130: 25.02
A131: 6 | B131: INVESTIGADOR CONTRATADO | C131: 3 | D131: CONTRATO LABORAL | E131: IPPP | F131: AYUDAS A LA INVESTIGACION POSDOCTORAL PLAN PROPIO | G131: 4 | H131: 32.1
A132: 6 | B132: INVESTIGADOR CONTRATADO | C132: 3 | D132: CONTRATO LABORAL | E132: PDPP | F132: PROGRAMA PERFECCIONAMIENTO DOCTORES PLAN PROPIO | G132: 4 | H132: 32.1
A133: 6 | B133: INVESTIGADOR CONTRATADO | C133: 3 | D133: CONTRATO LABORAL | E133: PIJC | F133: PROGRAMA INVESTIGACION JUAN DE LA CIERVA | G133: 4 | H133: 32.1
A134: 6 | B134: INVESTIGADOR CONTRATADO | C134: 3 | D134: CONTRATO LABORAL | E134: PIPRI | F134: PERSONAL INVESTIGADOR DE PROYECTOS INTERNACIONALES | G134: 4 | H134: 32.1
A135: 6 | B135: INVESTIGADOR CONTRATADO | C135: 3 | D135: CONTRATO LABORAL | E135: PIRC | F135: PROGRAMA INVESTIGACION RAMON Y CAJAL | G135: 4 | H135: 30.9
A136: 6 | B136: INVESTIGADOR CONTRATADO | C136: 3 | D136: CONTRATO LABORAL | E136: POOI | F136: INVESTIGADOR DOCTOR DE OTRAS INSTITUCIONES | G136: 4 | H136: 32.1
A137: 6 | B137: INVESTIGADOR CONTRATADO | C137: 3 | D137: CONTRATO LABORAL | E137: PPJID | F137: PROGRAMA PROYECTOS JÓVENES INVESTIGADORES DOCTORES | G137: 4 | H137: 32.1
A138: 6 | B138: INVESTIGADOR CONTRATADO | C138: 3 | D138: CONTRATO LABORAL | E138: PRPP | F138: PROGRAMA DE REINCORPORACION DEL PLAN PROPIO | G138: 4 | H138: 32.1
A139: 6 | B139: INVESTIGADOR CONTRATADO | C139: 3 | D139: CONTRATO LABORAL | E139: TALEN | F139: POSDOCTORAL TALENTIA JUNTA ANDALUCIA | G139: 4 | H139: 32.1
A140: 6 | B140: INVESTIGADOR CONTRATADO | C140: 6 | D140: PERSONAL DEL CONSEJO SOCIAL | E140: APPP | F140: AYUDA PUENTE DOCTORES PLAN PROPIO | G140: 4 | H140: 32.1
A141: 6 | B141: INVESTIGADOR CONTRATADO | C141: 9 | D141: CONTRATADOS INVESTIGACION | E141: CDPE | F141: CONTRATOS DOCTORES PROYECTOS DE EXCELENCIA | G141: 4 | H141: 32.1
A142: 6 | B142: INVESTIGADOR CONTRATADO | C142: 9 | D142: CONTRATADOS INVESTIGACION | E142: TALEN | F142: POSDOCTORAL TALENTIA JUNTA ANDALUCIA | G142: 4 | H142: 32.1
A143: 7 | B143: INVESTIGADOR EN FORMACIÓN | C143: 3 | D143: CONTRATO LABORAL | E143: CBE11 | F143: CONTRATOS PREDOCTORALES BECARIOS PROY. EXCELENCIA L.14/2011 | G143: 4 | H143: 25.02
A144: 7 | B144: INVESTIGADOR EN FORMACIÓN | C144: 3 | D144: CONTRATO LABORAL | E144: FPPP | F144: FORMACION DE INVESTIGADORES. PLAN PROPIO | G144: 4 | H144: 32.1
A145: 7 | B145: INVESTIGADOR EN FORMACIÓN | C145: 3 | D145: CONTRATO LABORAL | E145: FPP11 | F145: CONTRATOS PREDOCTORALES PLAN PROPIO LEY 14/2011 | G145: 4 | H145: 25.02
A146: 7 | B146: INVESTIGADOR EN FORMACIÓN | C146: 3 | D146: CONTRATO LABORAL | E146: FPU | F146: CONTRATOS REAL DECRETO 63/2006 | G146: 4 | H146: 30.9
A147: 7 | B147: INVESTIGADOR EN FORMACIÓN | C147: 3 | D147: CONTRATO LABORAL | E147: FPU11 | F147: CONTRATOS PREDOCTORALES LEY 14/2011 FPU | G147: 4 | H147: 25.02
A148: 7 | B148: INVESTIGADOR EN FORMACIÓN | C148: 3 | D148: CONTRATO LABORAL | E148: PROI | F148: CONTRATOS PREDOCTORALES DE OTRAS INSTITUCIONES | G148: 4 | H148: 25.02
A149: 7 | B149: INVESTIGADOR EN FORMACIÓN | C149: 3 | D149: CONTRATO LABORAL | E149: 11FPI | F149: CONTRATOS PREDOCTORALES FORMACION DOCTORES LEY 14/2011 | G149: 4 | H149: 25.02
A150: 7 | B150: INVESTIGADOR EN FORMACIÓN | C150: 11 | D150: CONTRATO EN PRÁCTICAS | E150: FPDID | F150: INVESTIGADOR DOCTOR JUNTA ANDALUCIA AREAS DEFICITARIAS | G150: 5 | H150: 32.1
A151: 7 | B151: INVESTIGADOR EN FORMACIÓN | C151: 11 | D151: CONTRATO EN PRÁCTICAS | E151: FPP11 | F151: CONTRATOS PREDOCTORALES PLAN PROPIO LEY 14/2011 | G151: 5 | H151: 25.02
A152: 7 | B152: INVESTIGADOR EN FORMACIÓN | C152: 11 | D152: CONTRATO EN PRÁCTICAS | E152: FPU | F152: CONTRATOS REAL DECRETO 63/2006 | G152: 5 | H152: 30.9
A153: 7 | B153: INVESTIGADOR EN FORMACIÓN | C153: 11 | D153: CONTRATO EN PRÁCTICAS | E153: 11FPI | F153: CONTRATOS PREDOCTORALES FORMACION DOCTORES LEY 14/2011 | G153: 5 | H153: 25.02
F154: PRÁCTICAS DE FORMACIÓN: 38,06€/MES

Sheet Categorias (hidden)
B1: AÑO 2023
E4: BASE MAXIMA 2023 | F4: 4495.5
B5: COLECTIVO
B7: NO INCLUIDOS EN EL R.D.L. 16/2013
B8: DOCENTE FUNCIONARIO ANTERIOR A 31/12/2010
B10: INCLUIDOS EN EL R.D.L. 16/2013
C11: C.Patronal | D11: C. obrera | E11: Ocupación (CNAE)
B12: DOCENTE FUNCIONARIO POSTERIOR A 31/12/2010 (Reduc 5,5 ya aplicada) | C12: 0.2327 | D12: 0.0449 | E12: 85
B13: (Pendiente Orden Cotiz.)
B14: DOCENTE CON CONTRATO ADMINISTRATIVO | C14: 0.317 | D14: 0.0645 | E14: 85
B16: PROFESORADO LABORAL (NO FIJO)
B17: PROFESOR AYUDANTE (CONTRATO 401 Obra o Servicio) | C17: 0.331 | D17: 0.065 | E17: 85
B18: PROFESOR INTERINO T.C. (CONTRATO 410) | C18: 0.319 | D18: 0.0645 | E18: 85
B19: PROFESOR INTERINO T.P. (CONTRATO 510) | C19: 0.319 | D19: 0.0645 | E19: 85
B20: PROFESOR ASOCIADO (CONTRATO 501) | C20: 0.331 | D20: 0.065 | E20: 85
B22: PROFESORADO LABORAL (INDEFINIDO)
B23: COLABORADOR | C23: 0.319 | D23: 0.0645 | E23: 85
B24: PROFESOR CONTRATADO DOCTOR | C24: 0.319 | D24: 0.0645 | E24: 85
B26: P.A.S. LABORAL FIJO (CONTRATO 100) y SUSTITUCIONES (CONTRATO 410)
B27: GRUPO I | C27: 0.319 | D27: 0.0645 | E27: a
B28: GRUPO II | C28: 0.319 | D28: 0.0645 | E28: a
B29: GRUPO III y GRUPO IV ESPECIALIDADES
B30: ENCARGADO DE EQUIPO JARDINES 18120826846 | C30: 0.3225 | D30: 0.0645 | E30: 81
B31: ENCARGADO DE EQUIPO MANTENIMIENTO 18120826846 | C31: 0.3225 | D31: 0.0645 | E31: 81
B32: TÉC. AUX. LIMPIEZA 18120826846 | C32: 0.34 | D32: 0.0645 | E32: G
B33: TECNICO CONSERJERIA 18120826846 | C33: 0.3225 | D33: 0.0645 | E33: 81
B34: TECNICO.ALMACEN 18120826846 | C34: 0.3225 | D34: 0.0645 | E34: 81
B35: TECNICO.OBRAS, EQUIPO Y MANTENIMIENTO 18120826846 | C35: 0.3225 | D35: 0.0645 | E35: 81
B36: TECNICO.HOSTELERÍA 18110583141 | C36: 0.319 | D36: 0.0645 | E36: 56
B37: TECNICO. LABORATORIO 18005275484 | C37: 0.319 | D37: 0.0645 | E37: a
B38: TECNICO. BIBLIOTECA Y MEDIOS AUDIOVISUALES 18005275484 | C38: 0.319 | D38: 0.0645 | E38: a
B41: PERSONAL LABORAL DE SUSTITUCIONES (CONTRATO 402 Acumulo tareas)
B42: En este tipo de contrato aumenta la cuota patronal en cada una de la
B43: especialidades anteriormente descritas en 1,20. La cuota obrera en 0,05
B45: FUNCIONARIOS DE CARRERA | C45: 0.262 | D45: 0.049 | E45: a
B47: FUNCIONARIOS INTERINOS | C47: 0.317 | D47: 0.0645 | E47: a
B49: INVESTIGACIÓN | E49: RLCE
B51: CONTRATO EN PRACTICAS Y Ramón y Cajal 1810997000 CONTRATO 420 | C51: 0.319 | D51: 0.0645 | E51: 9901 (sólo R y C)
B52: CONTRATO PREDOCTORAL 18117409618 Contrato 401 | C52: 0.2602 | D52: 0.065 | E52: 9921
B53: CONTRATO OBRA O SERVICIO T.C./T.P. 18107821065 Conrato 401, 501 | C53: 0.331 | D53: 0.065
B54: INVESTIGADORES EXTRACOMUNITARIOS 18118557349 Contrato 501 | C54: 0.264 | D54: 0.049
B55: PRÁCTICAS DE FORMACIÓN 18114374326 | C55: 53.79 | D55: 9.43 | E55: Pendiente Orden Cotiz.
B58: Bases mínimas por grupo de cotización | C58: Contingencias comun | D58: T. parcial min./h
B59: 1 | C59: 1629.3 | D59: 9.82 | E59: Pend. Desarrollo normativo | F59: .
B60: 2 | C60: 1351.2 | D60: 8.14 | E60: Pend. Desarrollo normativo | F60: .
B61: 3 | C61: 1175.4 | D61: 7.08 | E61: Pend. Desarrollo normativo | F61: .
B62: 4,5,6,7,8……….. | C62: 1166.7 | D62: 7.03 | E62: Pend. Desarrollo normativo | F62: .
B75: INVESTIGACIÓN
B76: FASE DE BECA | C76: 35,24 Euros/mes | D76: 6,18 Euros/mes
B77: FASE DE CONTRATO 1810997000 CONTRATO 420 | C77: 0.309 | D77: 0.0635
B78: CONTRATOS PREDOCTORALES Contrato 401 18117409618 | C78: 0.2502 | D78: 0.064
B79: CONTRATOS PREDOCTORALES a partir de 24/12/2015 contrato 420 | C79: 0.2382 | D79: 0.0635
B80: CONTRATOS PREDOCTORALES a partir de 01/05/2016 contrato 420 | C80: 0.2502 | D80: 0.064
B81: OBRA O SERVICIO T.C./T.P. 18107821065 CONTRATO 401 | C81: 0.321 | D81: 0.064
B82: OBRA O SERVICIO T.C./T.P. 18107821065 CONTRATO 100 | C82: 0.309 | D82: 0.0635
B83: PRÁCTICAS DE FORMACIÓN | C83: 35,24 Euros/mes | D83: 6,18 Euros/mes
